{"text_format":"1","workbook":"xlsx","n_sheets":10,"sheets":["Kundedata","Fronter","Fronter S-Line 19","Gavle og frisider","Sokler og tilpasning","Reoler","Hylder og Baldakin","Stamdata","Vejledninger","Version"],"not_rendered":{"charts":0,"images":22,"macros":1,"external_links":0,"defined_names":14,"comments":0,"pivot_tables":0},"unopened":[],"bounds":{"document_bytes":16777216,"sheet_cells":100000,"rows_first":2000,"rows_last":500,"rows_between":2000,"halvings":0,"cell_chars":16384,"cell_head_chars":4096},"cells_cut":0,"cells_raw":0,"read":"whole","date_system":"1900"}

{"sheet":"Kundedata","index":0,"n_rows":12,"n_cols":18,"rows_kept":12,"cut":false,"hidden":false,"merged":[[11,1,11,10],[11,12,11,15],[11,17,11,26],[9,1,10,26],[7,1,7,4],[7,5,7,10],[7,12,7,15],[7,16,7,20],[5,1,5,4],[5,5,5,10],[5,12,5,15],[5,16,5,20],[6,1,6,4],[6,5,6,10],[6,12,6,15],[6,16,6,20],[3,1,3,4],[3,5,3,10],[3,12,3,15],[3,16,3,20],[4,1,4,4],[4,5,4,10],[4,12,4,15],[4,16,4,20]]}
[]
[]
[]
[null,"Ordre eller tilbud",null,null,null,null,null,null,null,null,null,null,"Kundenavn:"]
[null,"Forhandler: ",null,null,null,null,null,null,null,null,null,null,"Leveringsadresse:"]
[null,"Rekv. Nr:",null,null,null,null,null,null,null,null,null,null,"Postnr:"]
[null,"Kontaktperson: ",null,null,null,null,null,null,null,null,null,null,"By:"]
[null,"Ønsket leveringsuge",null,null,null,null,null,null,null,null,null,null,"Kundens Tlf.nr:"]
[]
[null,"Nedenstående skal gøres ved download af filen fra Frontego"]
[]
[null,"1. Sikkerhedsadvarsel: Tryk på krydset i højre side",null,null,null,null,null,null,null,null,null,null,"2. Gem filen på din PC og luk",null,null,null,null,"3. Åben filen fra din PC og tryk på \"aktiver indhold\". Herefter kan filen bruges"]

{"sheet":"Fronter","index":1,"n_rows":100,"n_cols":35,"rows_kept":100,"cut":false,"hidden":false,"merged":[[15,18,15,19],[10,18,10,19],[10,14,10,15],[15,14,15,15],[99,6,99,8],[99,9,99,11],[99,12,99,15],[99,18,99,19],[99,20,99,23],[95,6,95,8],[95,9,95,11],[95,12,95,15],[95,18,95,19],[95,20,95,23],[93,6,93,8],[93,9,93,11],[93,12,93,15],[93,18,93,19],[93,20,93,23],[91,6,91,8],[91,9,91,11],[91,12,91,15],[91,18,91,19],[91,20,91,23],[99,24,99,27],[99,30,99,33],[97,6,97,8],[97,9,97,11],[97,12,97,15],[97,18,97,19],[97,20,97,23],[97,24,97,27],[97,30,97,33],[98,6,98,8],[98,9,98,11],[98,12,98,15],[98,18,98,19],[98,20,98,23],[98,24,98,27],[98,30,98,33],[97,16,97,17],[98,16,98,17],[99,16,99,17],[95,24,95,27],[95,30,95,33],[96,6,96,8],[96,9,96,11],[96,12,96,15],[96,18,96,19],[96,20,96,23],[96,24,96,27],[96,30,96,33],[95,16,95,17],[96,16,96,17],[93,24,93,27],[93,30,93,33],[94,6,94,8],[94,9,94,11],[94,12,94,15],[94,18,94,19],[94,20,94,23],[94,24,94,27],[94,30,94,33],[93,16,93,17],[94,16,94,17],[91,24,91,27],[91,30,91,33],[92,6,92,8],[92,9,92,11],[92,12,92,15],[92,18,92,19],[92,20,92,23],[92,24,92,27],[92,30,92,33],[91,16,91,17],[92,16,92,17],[89,6,89,8],[89,9,89,11],[89,12,89,15],[89,18,89,19],[89,20,89,23],[89,24,89,27],[89,30,89,33],[90,6,90,8],[90,9,90,11],[90,12,90,15],[90,18,90,19],[90,20,90,23],[90,24,90,27],[90,30,90,33],[89,16,89,17],[90,16,90,17],[87,6,87,8],[87,9,87,11],[87,12,87,15],[87,18,87,19],[87,20,87,23],[87,24,87,27],[87,30,87,33],[88,6,88,8],[88,9,88,11],[88,12,88,15],[88,18,88,19],[88,20,88,23],[88,24,88,27],[88,30,88,33],[87,16,87,17],[88,16,88,17],[85,6,85,8],[85,9,85,11],[85,12,85,15],[85,18,85,19],[85,20,85,23],[85,24,85,27],[85,30,85,33],[86,6,86,8],[86,9,86,11],[86,12,86,15],[86,18,86,19],[86,20,86,23],[86,24,86,27],[86,30,86,33],[85,16,85,17],[86,16,86,17],[83,6,83,8],[83,9,83,11],[83,12,83,15],[83,18,83,19],[83,20,83,23],[83,24,83,27],[83,30,83,33],[84,6,84,8],[84,9,84,11],[84,12,84,15],[84,18,84,19],[84,20,84,23],[84,24,84,27],[84,30,84,33],[83,16,83,17],[84,16,84,17],[81,6,81,8],[81,9,81,11],[81,12,81,15],[81,18,81,19],[81,20,81,23],[81,24,81,27],[81,30,81,33],[82,6,82,8],[82,9,82,11],[82,12,82,15],[82,18,82,19],[82,20,82,23],[82,24,82,27],[82,30,82,33],[81,16,81,17],[82,16,82,17],[79,6,79,8],[79,9,79,11],[79,12,79,15],[79,18,79,19],[79,20,79,23],[79,24,79,27],[79,30,79,33],[80,6,80,8],[80,9,80,11],[80,12,80,15],[80,18,80,19],[80,20,80,23],[80,24,80,27],[80,30,80,33],[79,16,79,17],[80,16,80,17],[77,6,77,8],[77,9,77,11],[77,12,77,15],[77,18,77,19],[77,20,77,23],[77,24,77,27],[77,30,77,33],[78,6,78,8],[78,9,78,11],[78,12,78,15],[78,18,78,19],[78,20,78,23],[78,24,78,27],[78,30,78,33],[77,16,77,17],[78,16,78,17],[75,6,75,8],[75,9,75,11],[75,12,75,15],[75,18,75,19],[75,20,75,23],[75,24,75,27],[75,30,75,33],[76,6,76,8],[76,9,76,11],[76,12,76,15],[76,18,76,19],[76,20,76,23],[76,24,76,27],[76,30,76,33],[75,16,75,17],[76,16,76,17],[73,6,73,8],[73,9,73,11],[73,12,73,15],[73,18,73,19],[73,20,73,23],[73,24,73,27],[73,30,73,33],[74,6,74,8],[74,9,74,11],[74,12,74,15],[74,18,74,19],[74,20,74,23],[74,24,74,27],[74,30,74,33],[73,16,73,17],[74,16,74,17],[71,6,71,8],[71,9,71,11],[71,12,71,15],[71,18,71,19],[71,20,71,23],[71,24,71,27],[71,30,71,33],[72,6,72,8],[72,9,72,11],[72,12,72,15],[72,18,72,19],[72,20,72,23],[72,24,72,27],[72,30,72,33],[71,16,71,17],[72,16,72,17],[69,6,69,8],[69,9,69,11],[69,12,69,15],[69,18,69,19],[69,20,69,23],[69,24,69,27],[69,30,69,33],[70,6,70,8],[70,9,70,11],[70,12,70,15],[70,18,70,19],[70,20,70,23],[70,24,70,27],[70,30,70,33],[69,16,69,17],[70,16,70,17],[67,6,67,8],[67,9,67,11],[67,12,67,15],[67,18,67,19],[67,20,67,23],[67,24,67,27],[67,30,67,33],[68,6,68,8],[68,9,68,11],[68,12,68,15],[68,18,68,19],[68,20,68,23],[68,24,68,27],[68,30,68,33],[67,16,67,17],[68,16,68,17],[65,6,65,8],[65,9,65,11],[65,12,65,15],[65,18,65,19],[65,20,65,23],[65,24,65,27],[65,30,65,33],[66,6,66,8],[66,9,66,11],[66,12,66,15],[66,18,66,19],[66,20,66,23],[66,24,66,27],[66,30,66,33],[65,16,65,17],[66,16,66,17],[63,6,63,8],[63,9,63,11],[63,12,63,15],[63,18,63,19],[63,20,63,23],[63,24,63,27],[63,30,63,33],[64,6,64,8],[64,9,64,11],[64,12,64,15],[64,18,64,19],[64,20,64,23],[64,24,64,27],[64,30,64,33],[63,16,63,17],[64,16,64,17],[61,6,61,8],[61,9,61,11],[61,12,61,15],[61,18,61,19],[61,20,61,23],[61,24,61,27],[61,30,61,33],[62,6,62,8],[62,9,62,11],[62,12,62,15],[62,18,62,19],[62,20,62,23],[62,24,62,27],[62,30,62,33],[61,16,61,17],[62,16,62,17],[59,6,59,8],[59,9,59,11],[59,12,59,15],[59,18,59,19],[59,20,59,23],[59,24,59,27],[59,30,59,33],[60,6,60,8],[60,9,60,11],[60,12,60,15],[60,18,60,19],[60,20,60,23],[60,24,60,27],[60,30,60,33],[59,16,59,17],[60,16,60,17],[57,6,57,8],[57,9,57,11],[57,12,57,15],[57,18,57,19],[57,20,57,23],[57,24,57,27],[57,30,57,33],[58,6,58,8],[58,9,58,11],[58,12,58,15],[58,18,58,19],[58,20,58,23],[58,24,58,27],[58,30,58,33],[57,16,57,17],[58,16,58,17],[54,20,54,23],[54,24,54,27],[54,30,54,33],[55,20,55,23],[55,24,55,27],[55,30,55,33],[56,9,56,11],[56,12,56,15],[56,18,56,19],[56,20,56,23],[56,24,56,27],[56,30,56,33],[51,24,51,27],[51,30,51,33],[52,9,52,11],[52,12,52,15],[52,18,52,19],[52,20,52,23],[52,24,52,27],[52,30,52,33],[53,20,53,23],[53,24,53,27],[53,30,53,33],[51,20,51,23],[55,6,55,8],[56,6,56,8],[51,9,51,11],[51,12,51,15],[51,18,51,19],[53,9,53,11],[53,12,53,15],[53,18,53,19],[55,9,55,11],[55,12,55,15],[55,18,55,19],[51,16,51,17],[52,16,52,17],[53,16,53,17],[54,16,54,17],[55,16,55,17],[56,16,56,17],[54,9,54,11],[54,12,54,15],[54,18,54,19],[12,1,12,5],[13,1,13,5],[14,1,14,5],[15,1,15,5],[16,1,16,5],[17,1,17,5],[18,1,18,5],[53,6,53,8],[54,6,54,8],[51,6,51,8],[52,6,52,8],[12,6,12,12],[13,6,13,12],[14,6,14,12],[15,6,15,12],[16,6,16,12],[17,6,17,12],[18,6,18,12],[21,4,22,4],[21,5,22,5],[21,1,22,1],[21,2,22,2],[19,1,19,5],[21,3,22,3],[3,16,3,20],[10,1,10,5],[11,1,11,5],[3,1,3,4],[4,16,4,20],[5,16,5,20],[3,5,3,10],[4,5,4,10],[5,5,5,10],[6,5,6,10],[7,5,7,10],[4,1,4,4],[3,12,3,15],[4,12,4,15],[5,12,5,15],[5,1,5,4],[10,6,10,12],[11,6,11,12],[7,16,7,20],[6,16,6,20],[6,1,6,4],[7,12,7,15],[6,12,6,15],[7,1,7,4],[21,6,22,8],[23,9,23,11],[24,9,24,11],[21,9,22,11],[19,6,19,12],[21,30,22,33],[29,24,29,27],[29,30,29,33],[21,28,21,29],[26,30,26,33],[27,30,27,33],[28,30,28,33],[21,24,22,27],[23,30,23,33],[24,30,24,33],[25,30,25,33],[23,24,23,27],[24,24,24,27],[25,24,25,27],[26,24,26,27],[27,24,27,27],[28,24,28,27],[23,12,23,15],[24,12,24,15],[29,12,29,15],[29,18,29,19],[29,20,29,23],[28,18,28,19],[28,20,28,23],[32,6,32,8],[32,9,32,11],[32,12,32,15],[32,18,32,19],[32,20,32,23],[31,6,31,8],[31,9,31,11],[31,12,31,15],[31,18,31,19],[31,20,31,23],[30,6,30,8],[30,9,30,11],[30,12,30,15],[30,18,30,19],[30,20,30,23],[29,6,29,8],[29,9,29,11],[25,9,25,11],[26,9,26,11],[27,9,27,11],[28,9,28,11],[23,6,23,8],[24,6,24,8],[25,6,25,8],[27,16,27,17],[25,12,25,15],[26,12,26,15],[28,12,28,15],[26,6,26,8],[27,6,27,8],[33,9,33,11],[33,12,33,15],[33,18,33,19],[33,20,33,23],[33,24,33,27],[33,30,33,33],[21,20,21,23],[22,20,22,23],[27,12,27,15],[23,20,23,23],[24,20,24,23],[25,20,25,23],[26,20,26,23],[27,20,27,23],[25,18,25,19],[26,18,26,19],[27,18,27,19],[21,18,22,19],[23,18,23,19],[24,18,24,19],[21,12,22,15],[21,16,22,17],[23,16,23,17],[24,16,24,17],[30,24,30,27],[30,30,30,33],[31,24,31,27],[31,30,31,33],[28,6,28,8],[25,16,25,17],[26,16,26,17],[34,6,34,8],[34,9,34,11],[34,12,34,15],[34,18,34,19],[34,20,34,23],[34,24,34,27],[34,30,34,33],[28,16,28,17],[29,16,29,17],[30,16,30,17],[31,16,31,17],[32,16,32,17],[33,16,33,17],[34,16,34,17],[32,24,32,27],[32,30,32,33],[33,6,33,8],[35,6,35,8],[35,9,35,11],[35,12,35,15],[35,18,35,19],[35,20,35,23],[35,24,35,27],[35,30,35,33],[36,6,36,8],[36,9,36,11],[36,12,36,15],[36,18,36,19],[36,20,36,23],[36,24,36,27],[36,30,36,33],[35,16,35,17],[36,16,36,17],[37,6,37,8],[37,9,37,11],[37,12,37,15],[37,18,37,19],[37,20,37,23],[37,24,37,27],[37,30,37,33],[37,16,37,17],[38,6,38,8],[38,9,38,11],[38,12,38,15],[38,18,38,19],[38,20,38,23],[38,24,38,27],[38,30,38,33],[39,6,39,8],[39,9,39,11],[39,12,39,15],[39,18,39,19],[39,20,39,23],[39,24,39,27],[39,30,39,33],[38,16,38,17],[39,16,39,17],[40,6,40,8],[40,9,40,11],[40,12,40,15],[40,18,40,19],[40,20,40,23],[40,24,40,27],[40,30,40,33],[41,6,41,8],[41,9,41,11],[41,12,41,15],[41,18,41,19],[41,20,41,23],[41,24,41,27],[41,30,41,33],[40,16,40,17],[41,16,41,17],[42,6,42,8],[42,9,42,11],[42,12,42,15],[42,18,42,19],[42,20,42,23],[42,24,42,27],[42,30,42,33],[43,6,43,8],[43,9,43,11],[43,12,43,15],[43,18,43,19],[43,20,43,23],[43,24,43,27],[43,30,43,33],[42,16,42,17],[43,16,43,17],[45,6,45,8],[45,9,45,11],[45,12,45,15],[45,18,45,19],[45,20,45,23],[45,24,45,27],[45,30,45,33],[44,16,44,17],[45,16,45,17],[50,6,50,8],[50,9,50,11],[50,12,50,15],[50,18,50,19],[50,20,50,23],[50,24,50,27],[50,30,50,33],[48,6,48,8],[48,9,48,11],[48,12,48,15],[48,18,48,19],[48,20,48,23],[48,24,48,27],[48,30,48,33],[49,6,49,8],[49,9,49,11],[49,12,49,15],[49,18,49,19],[49,20,49,23],[49,24,49,27],[49,30,49,33],[48,16,48,17],[49,16,49,17],[50,16,50,17],[8,16,8,33],[46,6,46,8],[46,9,46,11],[46,12,46,15],[46,18,46,19],[46,20,46,23],[46,24,46,27],[46,30,46,33],[47,6,47,8],[47,9,47,11],[47,12,47,15],[47,18,47,19],[47,20,47,23],[47,24,47,27],[47,30,47,33],[46,16,46,17],[47,16,47,17],[44,6,44,8],[44,9,44,11],[44,12,44,15],[44,18,44,19],[44,20,44,23],[44,24,44,27],[44,30,44,33]]}
[]
[]
[]
[null,"Ordre eller tilbud",null,null,null,{"$f":"Kundedata!F4","v":0},null,null,null,null,null,null,"Kundenavn:",null,null,null,{"$f":"Kundedata!Q4","v":0}]
[null,"Forhandler: ",null,null,null,{"$f":"Kundedata!F5","v":0},null,null,null,null,null,null,"Leveringsadresse:",null,null,null,{"$f":"Kundedata!Q5","v":0}]
[null,"Rekv. Nr:",null,null,null,{"$f":"Kundedata!F6","v":0},null,null,null,null,null,null,"Postnr:",null,null,null,{"$f":"Kundedata!Q6","v":0}]
[null,"Kontaktperson: ",null,null,null,{"$f":"Kundedata!F7","v":0},null,null,null,null,null,null,"By:",null,null,null,{"$f":"Kundedata!Q7","v":0}]
[null,"Ønsket leveringsuge",null,null,null,{"$f":"Kundedata!F8","v":0},null,null,null,null,null,null,"Kundens Tlf.nr:",null,null,null,{"$f":"Kundedata!Q8","v":0}]
[]
[null,"Produktinformation - Indtast i alle grønne felter"]
[null,"Vælg tykkelse af fronten",null,null,null,null,null,null,null,null,null,null,null,null,"Finer",null,null,null,"Linoleum",null,null,null,null,null,null,null,null,null,null,null,null,null,null,null,{"$f":"_xlfn.XLOOKUP(G11,tblProfile[Profiltykkelse],tblProfile[Efter kalibrering])","v":{"$error":"#N/A"}}]
[null,"Vælg kant"]
[null,{"$f":"\"Vælg \"&G12","v":"Vælg "}]
[null,"Vælg forside",null,null,null,null,null,null,null,null,null,null,null,null,null,null,null,null,null,null,null,null,null,null,null,null,null,null,null,null,null,null,null,null,{"$f":"_xlfn.XLOOKUP(G14,tblBorderSurface[Forsider],tblBorderSurface[Tykkelse (forside)])","v":{"$error":"#N/A"}}]
[null,"Vælg overflade"]
[null,"Vælg bagside",null,null,null,null,{"$f":"_xlfn.XLOOKUP(G14,Stamdata!O9:O20,Stamdata!P9:P20)","v":{"$error":"#N/A"}},null,null,null,null,null,null,null,"Laminat",null,null,null,"Profiler",null,null,null,null,null,null,null,null,null,null,null,null,null,null,null,{"$f":"_xlfn.XLOOKUP(G16,tblBorderSurface[Bagsider],tblBorderSurface[Tykkelse (bagside)])","v":{"$error":"#N/A"}}]
[null,"Vælg overflade"]
[null,{"$f":"IF(G12=\"Træ\",\"Behandling\",\"\")","v":""}]
[null,"Boringstype"]
[null,"Frontens færdige tykkelse",null,null,null,null,{"$f":"IFERROR((SUM(AI11:AI18)),\"\")&\" mm\"","v":" mm"}]
[]
[null,"Antal","Højde","x","Bred-de","Vælg profil","Grebplacering",null,null,"Samlingstype\nSe \"Vejledning\"",null,null,"Fler delt - størrelser\nSe \"Vejledning\"",null,null,null,"Finerstruktur\nretning",null,"Vælg vitrine",null,null,null,null,null,"Boring - hængsel\ngreb OP!",null,null,null,"Boreside - greb OP! Sæt X:",null,"Bemærkning"]
[null,null,null,null,null,null,null,null,null,null,null,null,null,null,null,null,null,null,null,null,"Vælg skuffeboring",null,null,null,null,null,null,null,"Venstre","Højre"]
[null,null,null,"x",null,null,null,null,null,null,null,null,null,null,null,null,null,null,null,null,null,null,null,null,null,null,null,null,null,null,{"$f":"IFERROR(\"Knæklåge, 2 x bredde: \"&AI24,\"\")","v":""},null,null,null,{"$f":"E24/2-SUM(AI11:AI18)-2","v":{"$error":"#N/A"}}]
[null,null,null,{"$f":"IF(B24<>\"\",\"x\",\"\")","v":""}]
[null,null,null,""]
[null,null,null,""]
[null,null,null,""]
[null,null,null,""]
[null,null,null,""]
[null,null,null,""]
[null,null,null,""]
[null,null,null,""]
[null,null,null,""]
[null,null,null,""]
[null,null,null,""]
[null,null,null,""]
[null,null,null,""]
[null,null,null,""]
[null,null,null,""]
[null,null,null,""]
[null,null,null,""]
[null,null,null,""]
[null,null,null,""]
[null,null,null,""]
[null,null,null,""]
[null,null,null,""]
[null,null,null,{"$f":"IF(B47<>\"\",\"x\",\"\")","v":""}]
[null,null,null,{"$f":"IF(B48<>\"\",\"x\",\"\")","v":""}]
[null,null,null,""]
[null,null,null,""]
[null,null,null,""]
[null,null,null,""]
[null,null,null,""]
[null,null,null,""]
[null,null,null,""]
[null,null,null,""]
[null,null,null,""]
[null,null,null,""]
[null,null,null,{"$f":"IF(B59<>\"\",\"x\",\"\")","v":""}]
[null,null,null,""]
[null,null,null,""]
[null,null,null,""]
[null,null,null,""]
[null,null,null,""]
[null,null,null,""]
[null,null,null,""]
[null,null,null,""]
[null,null,null,""]
[null,null,null,""]
[null,null,null,""]
[null,null,null,""]
[null,null,null,""]
[null,null,null,""]
[null,null,null,""]
[null,null,null,""]
[null,null,null,""]
[null,null,null,""]
[null,null,null,""]
[null,null,null,""]
[null,null,null,""]
[null,null,null,""]
[null,null,null,""]
[null,null,null,""]
[null,null,null,{"$f":"IF(B84<>\"\",\"x\",\"\")","v":""}]
[null,null,null,""]
[null,null,null,""]
[null,null,null,""]
[null,null,null,""]
[null,null,null,""]
[null,null,null,""]
[null,null,null,""]
[null,null,null,""]
[null,null,null,""]
[null,null,null,""]
[null,null,null,""]
[null,null,null,""]
[null,null,null,""]
[null,null,null,""]
[null,null,null,""]

{"sheet":"Fronter S-Line 19","index":2,"n_rows":100,"n_cols":20,"rows_kept":100,"cut":false,"hidden":false,"merged":[[99,6,99,8],[99,9,99,12],[99,13,99,16],[99,19,99,22],[96,6,96,8],[96,9,96,12],[96,13,96,16],[96,19,96,22],[97,6,97,8],[97,9,97,12],[97,13,97,16],[97,19,97,22],[98,6,98,8],[98,9,98,12],[98,13,98,16],[98,19,98,22],[94,19,94,22],[95,6,95,8],[95,9,95,12],[95,13,95,16],[95,19,95,22],[90,6,90,8],[90,9,90,12],[90,13,90,16],[90,19,90,22],[91,6,91,8],[91,9,91,12],[91,13,91,16],[91,19,91,22],[92,6,92,8],[92,9,92,12],[92,13,92,16],[92,19,92,22],[93,6,93,8],[93,9,93,12],[93,13,93,16],[93,19,93,22],[94,6,94,8],[94,9,94,12],[94,13,94,16],[87,6,87,8],[87,9,87,12],[87,13,87,16],[87,19,87,22],[88,6,88,8],[88,9,88,12],[88,13,88,16],[88,19,88,22],[89,6,89,8],[89,9,89,12],[89,13,89,16],[89,19,89,22],[84,6,84,8],[84,9,84,12],[84,13,84,16],[84,19,84,22],[85,6,85,8],[85,9,85,12],[85,13,85,16],[85,19,85,22],[86,6,86,8],[86,9,86,12],[86,13,86,16],[86,19,86,22],[81,6,81,8],[81,9,81,12],[81,13,81,16],[81,19,81,22],[82,6,82,8],[82,9,82,12],[82,13,82,16],[82,19,82,22],[83,6,83,8],[83,9,83,12],[83,13,83,16],[83,19,83,22],[78,6,78,8],[78,9,78,12],[78,13,78,16],[78,19,78,22],[79,6,79,8],[79,9,79,12],[79,13,79,16],[79,19,79,22],[80,6,80,8],[80,9,80,12],[80,13,80,16],[80,19,80,22],[75,6,75,8],[75,9,75,12],[75,13,75,16],[75,19,75,22],[76,6,76,8],[76,9,76,12],[76,13,76,16],[76,19,76,22],[77,6,77,8],[77,9,77,12],[77,13,77,16],[77,19,77,22],[72,6,72,8],[72,9,72,12],[72,13,72,16],[72,19,72,22],[73,6,73,8],[73,9,73,12],[73,13,73,16],[73,19,73,22],[74,6,74,8],[74,9,74,12],[74,13,74,16],[74,19,74,22],[69,6,69,8],[69,9,69,12],[69,13,69,16],[69,19,69,22],[70,6,70,8],[70,9,70,12],[70,13,70,16],[70,19,70,22],[71,6,71,8],[71,9,71,12],[71,13,71,16],[71,19,71,22],[66,6,66,8],[66,9,66,12],[66,13,66,16],[66,19,66,22],[67,6,67,8],[67,9,67,12],[67,13,67,16],[67,19,67,22],[68,6,68,8],[68,9,68,12],[68,13,68,16],[68,19,68,22],[63,6,63,8],[63,9,63,12],[63,13,63,16],[63,19,63,22],[64,6,64,8],[64,9,64,12],[64,13,64,16],[64,19,64,22],[65,6,65,8],[65,9,65,12],[65,13,65,16],[65,19,65,22],[60,6,60,8],[60,9,60,12],[60,13,60,16],[60,19,60,22],[61,6,61,8],[61,9,61,12],[61,13,61,16],[61,19,61,22],[62,6,62,8],[62,9,62,12],[62,13,62,16],[62,19,62,22],[57,6,57,8],[57,9,57,12],[57,13,57,16],[57,19,57,22],[58,6,58,8],[58,9,58,12],[58,13,58,16],[58,19,58,22],[59,6,59,8],[59,9,59,12],[59,13,59,16],[59,19,59,22],[54,6,54,8],[54,9,54,12],[54,13,54,16],[54,19,54,22],[55,6,55,8],[55,9,55,12],[55,13,55,16],[55,19,55,22],[56,6,56,8],[56,9,56,12],[56,13,56,16],[56,19,56,22],[51,6,51,8],[51,9,51,12],[51,13,51,16],[51,19,51,22],[52,6,52,8],[52,9,52,12],[52,13,52,16],[52,19,52,22],[53,6,53,8],[53,9,53,12],[53,13,53,16],[53,19,53,22],[3,1,3,4],[3,5,3,10],[3,12,3,15],[3,16,3,20],[4,1,4,4],[4,5,4,10],[4,12,4,15],[4,16,4,20],[14,1,14,5],[7,16,7,20],[5,1,5,4],[5,5,5,10],[5,12,5,15],[5,16,5,20],[6,1,6,4],[6,5,6,10],[6,12,6,15],[6,16,6,20],[10,14,10,15],[10,18,10,19],[15,1,15,5],[11,1,11,5],[12,1,12,5],[13,1,13,5],[11,6,11,12],[7,1,7,4],[7,5,7,10],[7,12,7,15],[12,6,12,12],[13,6,13,12],[14,6,14,12],[15,6,15,12],[10,1,10,5],[10,6,10,12],[15,14,15,15],[19,1,19,5],[21,1,22,1],[21,2,22,2],[21,3,22,3],[21,4,22,4],[21,5,22,5],[21,6,22,8],[16,1,16,5],[17,1,17,5],[18,1,18,5],[17,6,17,12],[16,6,16,12],[23,19,23,22],[24,9,24,12],[24,13,24,16],[24,19,24,22],[23,6,23,8],[23,9,23,12],[23,13,23,16],[21,9,21,12],[21,13,22,16],[21,17,21,18],[21,19,22,22],[22,9,22,12],[28,6,28,8],[30,6,30,8],[31,19,31,22],[24,6,24,8],[26,6,26,8],[31,6,31,8],[31,9,31,12],[31,13,31,16],[29,19,29,22],[30,9,30,12],[30,13,30,16],[30,19,30,22],[29,6,29,8],[29,9,29,12],[29,13,29,16],[27,19,27,22],[28,9,28,12],[28,13,28,16],[25,13,25,16],[33,6,33,8],[33,9,33,12],[33,13,33,16],[33,19,33,22],[34,6,34,8],[34,9,34,12],[34,13,34,16],[34,19,34,22],[18,6,18,12],[19,6,19,12],[32,6,32,8],[32,9,32,12],[32,13,32,16],[32,19,32,22],[28,19,28,22],[27,6,27,8],[27,9,27,12],[27,13,27,16],[25,19,25,22],[26,9,26,12],[26,13,26,16],[26,19,26,22],[25,6,25,8],[25,9,25,12],[37,6,37,8],[37,9,37,12],[37,13,37,16],[37,19,37,22],[38,6,38,8],[38,9,38,12],[38,13,38,16],[38,19,38,22],[35,6,35,8],[35,9,35,12],[35,13,35,16],[35,19,35,22],[36,6,36,8],[36,9,36,12],[36,13,36,16],[36,19,36,22],[41,6,41,8],[41,9,41,12],[41,13,41,16],[41,19,41,22],[42,6,42,8],[42,9,42,12],[42,13,42,16],[42,19,42,22],[39,6,39,8],[39,9,39,12],[39,13,39,16],[39,19,39,22],[40,6,40,8],[40,9,40,12],[40,13,40,16],[40,19,40,22],[46,19,46,22],[43,6,43,8],[43,9,43,12],[43,13,43,16],[43,19,43,22],[44,6,44,8],[44,9,44,12],[44,13,44,16],[44,19,44,22],[15,17,15,20],[49,6,49,8],[49,9,49,12],[49,13,49,16],[49,19,49,22],[50,6,50,8],[50,9,50,12],[50,13,50,16],[50,19,50,22],[47,6,47,8],[47,9,47,12],[47,13,47,16],[47,19,47,22],[48,6,48,8],[48,9,48,12],[48,13,48,16],[48,19,48,22],[45,6,45,8],[45,9,45,12],[45,13,45,16],[45,19,45,22],[46,6,46,8],[46,9,46,12],[46,13,46,16]]}
[]
[]
[]
[null,"Ordre eller tilbud",null,null,null,{"$f":"Kundedata!F4","v":0},null,null,null,null,null,null,"Kundenavn:",null,null,null,{"$f":"Kundedata!Q4","v":0}]
[null,"Forhandler: ",null,null,null,{"$f":"Kundedata!F5","v":0},null,null,null,null,null,null,"Leveringsadresse:",null,null,null,{"$f":"Kundedata!Q5","v":0}]
[null,"Rekv. Nr:",null,null,null,{"$f":"Kundedata!F6","v":0},null,null,null,null,null,null,"Postnr:",null,null,null,{"$f":"Kundedata!Q6","v":0}]
[null,"Kontaktperson: ",null,null,null,{"$f":"Kundedata!F7","v":0},null,null,null,null,null,null,"By:",null,null,null,{"$f":"Kundedata!Q7","v":0}]
[null,"Ønsket leveringsuge",null,null,null,{"$f":"Kundedata!F8","v":0},null,null,null,null,null,null,"Kundens Tlf.nr:",null,null,null,{"$f":"Kundedata!Q8","v":0}]
[]
[null,"Produktinformation - Indtast i alle grønne felter"]
[null,"Skabstykkelse (afstand til bagplade)",null,null,null,null,null,null,null,null,null,null,null,null,"Finer",null,null,null,"Linoleum"]
[]
[null,"Vælg Træ"]
[null,"Vælg forside"]
[null,"Vælg overflade"]
[null,null,null,null,null,null,null,null,null,null,null,null,null,null,"Laminat",null,null,"Profil til S-Line 19"]
[]
[null,"Behandling"]
[null,"Boringstype"]
[null,"Frontens færdige tykkelse",null,null,null,null,{"$f":"\"19 mm\"","v":"19 mm"}]
[]
[null,"Antal","Højde","x","Bred-de","Vælg profil","Opvaskefront\n(bagplade fuld HxB)\nJa/Nej",null,null,"Skuffe-boring",null,null,null,"Boring - hængsel\ngreb OP!",null,null,null,"Boreside - greb OP! Sæt X:",null,"Bemærkning"]
[null,null,null,null,null,null,null,null,null,"Vælg",null,null,null,null,null,null,null,"Venstre","Højre"]
[null,null,null,"x",null,{"$f":"IF(B24=\"\",\"\",\"S-Line\")","v":""}]
[null,null,null,{"$f":"IF(B24<>\"\",\"x\",\"\")","v":""},null,""]
[null,null,null,"",null,""]
[null,null,null,"",null,""]
[null,null,null,"",null,""]
[null,null,null,"",null,""]
[null,null,null,"",null,""]
[null,null,null,"",null,""]
[null,null,null,"",null,""]
[null,null,null,"",null,{"$f":"IF(B33=\"\",\"\",\"S-Line\")","v":""}]
[null,null,null,"",null,""]
[null,null,null,"",null,""]
[null,null,null,"",null,""]
[null,null,null,"",null,""]
[null,null,null,"",null,""]
[null,null,null,"",null,""]
[null,null,null,"",null,""]
[null,null,null,"",null,""]
[null,null,null,"",null,""]
[null,null,null,"",null,""]
[null,null,null,"",null,""]
[null,null,null,"",null,""]
[null,null,null,"",null,""]
[null,null,null,"",null,""]
[null,null,null,"",null,""]
[null,null,null,"",null,""]
[null,null,null,"",null,""]
[null,null,null,"",null,""]
[null,null,null,{"$f":"IF(B51<>\"\",\"x\",\"\")","v":""},null,{"$f":"IF(B52=\"\",\"\",\"S-Line\")","v":""}]
[null,null,null,{"$f":"IF(B52<>\"\",\"x\",\"\")","v":""},null,{"$f":"IF(B53=\"\",\"\",\"S-Line\")","v":""}]
[null,null,null,"",null,""]
[null,null,null,"",null,""]
[null,null,null,"",null,""]
[null,null,null,"",null,""]
[null,null,null,"",null,""]
[null,null,null,"",null,""]
[null,null,null,"",null,""]
[null,null,null,"",null,""]
[null,null,null,"",null,""]
[null,null,null,"",null,""]
[null,null,null,"",null,""]
[null,null,null,"",null,""]
[null,null,null,"",null,""]
[null,null,null,"",null,""]
[null,null,null,"",null,""]
[null,null,null,"",null,""]
[null,null,null,"",null,""]
[null,null,null,"",null,""]
[null,null,null,"",null,""]
[null,null,null,"",null,""]
[null,null,null,"",null,""]
[null,null,null,"",null,""]
[null,null,null,"",null,""]
[null,null,null,"",null,""]
[null,null,null,"",null,""]
[null,null,null,"",null,""]
[null,null,null,"",null,""]
[null,null,null,"",null,""]
[null,null,null,"",null,""]
[null,null,null,"",null,""]
[null,null,null,{"$f":"IF(B83<>\"\",\"x\",\"\")","v":""},null,{"$f":"IF(B84=\"\",\"\",\"S-Line\")","v":""}]
[null,null,null,"",null,""]
[null,null,null,"",null,""]
[null,null,null,"",null,""]
[null,null,null,"",null,""]
[null,null,null,"",null,""]
[null,null,null,"",null,""]
[null,null,null,"",null,""]
[null,null,null,"",null,""]
[null,null,null,"",null,""]
[null,null,null,"",null,""]
[null,null,null,"",null,""]
[null,null,null,"",null,""]
[null,null,null,"",null,""]
[null,null,null,"",null,""]
[null,null,null,"",null,""]
[null,null,null,"",null,""]

{"sheet":"Gavle og frisider","index":3,"n_rows":100,"n_cols":22,"rows_kept":100,"cut":false,"hidden":false,"merged":[[15,14,15,15],[99,6,99,8],[99,9,99,12],[99,13,99,16],[96,6,96,8],[96,9,96,12],[96,13,96,16],[97,6,97,8],[97,9,97,12],[97,13,97,16],[98,6,98,8],[98,9,98,12],[98,13,98,16],[93,6,93,8],[93,9,93,12],[93,13,93,16],[94,6,94,8],[94,9,94,12],[94,13,94,16],[95,6,95,8],[95,9,95,12],[95,13,95,16],[90,6,90,8],[90,9,90,12],[90,13,90,16],[91,6,91,8],[91,9,91,12],[91,13,91,16],[92,6,92,8],[92,9,92,12],[92,13,92,16],[87,6,87,8],[87,9,87,12],[87,13,87,16],[88,6,88,8],[88,9,88,12],[88,13,88,16],[89,6,89,8],[89,9,89,12],[89,13,89,16],[84,6,84,8],[84,9,84,12],[84,13,84,16],[85,6,85,8],[85,9,85,12],[85,13,85,16],[86,6,86,8],[86,9,86,12],[86,13,86,16],[81,6,81,8],[81,9,81,12],[81,13,81,16],[82,6,82,8],[82,9,82,12],[82,13,82,16],[83,6,83,8],[83,9,83,12],[83,13,83,16],[78,6,78,8],[78,9,78,12],[78,13,78,16],[79,6,79,8],[79,9,79,12],[79,13,79,16],[80,6,80,8],[80,9,80,12],[80,13,80,16],[75,6,75,8],[75,9,75,12],[75,13,75,16],[76,6,76,8],[76,9,76,12],[76,13,76,16],[77,6,77,8],[77,9,77,12],[77,13,77,16],[72,6,72,8],[72,9,72,12],[72,13,72,16],[73,6,73,8],[73,9,73,12],[73,13,73,16],[74,6,74,8],[74,9,74,12],[74,13,74,16],[69,6,69,8],[69,9,69,12],[69,13,69,16],[70,6,70,8],[70,9,70,12],[70,13,70,16],[71,6,71,8],[71,9,71,12],[71,13,71,16],[66,6,66,8],[66,9,66,12],[66,13,66,16],[67,6,67,8],[67,9,67,12],[67,13,67,16],[68,6,68,8],[68,9,68,12],[68,13,68,16],[63,6,63,8],[63,9,63,12],[63,13,63,16],[64,6,64,8],[64,9,64,12],[64,13,64,16],[65,6,65,8],[65,9,65,12],[65,13,65,16],[60,6,60,8],[60,9,60,12],[60,13,60,16],[61,6,61,8],[61,9,61,12],[61,13,61,16],[62,6,62,8],[62,9,62,12],[62,13,62,16],[57,6,57,8],[57,9,57,12],[57,13,57,16],[58,6,58,8],[58,9,58,12],[58,13,58,16],[59,6,59,8],[59,9,59,12],[59,13,59,16],[54,6,54,8],[54,9,54,12],[54,13,54,16],[55,6,55,8],[55,9,55,12],[55,13,55,16],[56,6,56,8],[56,9,56,12],[56,13,56,16],[51,6,51,8],[51,9,51,12],[51,13,51,16],[52,6,52,8],[52,9,52,12],[52,13,52,16],[53,6,53,8],[53,9,53,12],[53,13,53,16],[3,1,3,4],[3,5,3,10],[3,12,3,15],[3,16,3,20],[4,1,4,4],[4,5,4,10],[4,12,4,15],[4,16,4,20],[11,1,11,5],[7,16,7,20],[5,1,5,4],[5,5,5,10],[5,12,5,15],[5,16,5,20],[6,1,6,4],[6,5,6,10],[6,12,6,15],[6,16,6,20],[10,14,10,15],[10,18,10,19],[12,1,12,5],[13,1,13,5],[11,6,11,12],[12,6,12,12],[13,6,13,12],[7,1,7,4],[7,5,7,10],[7,12,7,15],[10,1,10,5],[10,6,10,12],[17,1,17,5],[18,1,18,5],[17,6,17,12],[18,6,18,12],[14,1,14,5],[15,1,15,5],[16,1,16,5],[14,6,14,12],[15,6,15,12],[16,6,16,12],[23,13,23,16],[24,6,24,8],[24,9,24,12],[24,13,24,16],[23,6,23,8],[23,9,23,12],[21,9,22,12],[21,13,22,16],[19,1,19,5],[21,1,22,1],[21,2,22,2],[21,3,22,3],[21,4,22,4],[21,5,22,5],[21,6,22,8],[28,9,28,12],[28,13,28,16],[27,6,27,8],[27,9,27,12],[25,13,25,16],[26,6,26,8],[26,9,26,12],[26,13,26,16],[25,6,25,8],[25,9,25,12],[34,6,34,8],[34,9,34,12],[34,13,34,16],[35,6,35,8],[35,9,35,12],[35,13,35,16],[19,6,19,12],[32,6,32,8],[32,9,32,12],[32,13,32,16],[33,6,33,8],[33,9,33,12],[33,13,33,16],[31,13,31,16],[31,6,31,8],[31,9,31,12],[29,13,29,16],[30,6,30,8],[30,9,30,12],[30,13,30,16],[29,6,29,8],[29,9,29,12],[27,13,27,16],[28,6,28,8],[38,6,38,8],[38,9,38,12],[38,13,38,16],[39,6,39,8],[39,9,39,12],[39,13,39,16],[36,6,36,8],[36,9,36,12],[36,13,36,16],[37,6,37,8],[37,9,37,12],[37,13,37,16],[42,6,42,8],[42,9,42,12],[42,13,42,16],[43,6,43,8],[43,9,43,12],[43,13,43,16],[40,6,40,8],[40,9,40,12],[40,13,40,16],[41,6,41,8],[41,9,41,12],[41,13,41,16],[46,6,46,8],[46,9,46,12],[46,13,46,16],[47,6,47,8],[47,9,47,12],[47,13,47,16],[44,6,44,8],[44,9,44,12],[44,13,44,16],[45,6,45,8],[45,9,45,12],[45,13,45,16],[50,6,50,8],[50,9,50,12],[50,13,50,16],[48,6,48,8],[48,9,48,12],[48,13,48,16],[49,6,49,8],[49,9,49,12],[49,13,49,16]]}
[]
[]
[]
[null,"Ordre eller tilbud",null,null,null,{"$f":"Kundedata!F4","v":0},null,null,null,null,null,null,"Kundenavn:",null,null,null,{"$f":"Kundedata!Q4","v":0}]
[null,"Forhandler: ",null,null,null,{"$f":"Kundedata!F5","v":0},null,null,null,null,null,null,"Leveringsadresse:",null,null,null,{"$f":"Kundedata!Q5","v":0}]
[null,"Rekv. Nr:",null,null,null,{"$f":"Kundedata!F6","v":0},null,null,null,null,null,null,"Postnr:",null,null,null,{"$f":"Kundedata!Q6","v":0}]
[null,"Kontaktperson: ",null,null,null,{"$f":"Kundedata!F7","v":0},null,null,null,null,null,null,"By:",null,null,null,{"$f":"Kundedata!Q7","v":0}]
[null,"Ønsket leveringsuge",null,null,null,{"$f":"Kundedata!F8","v":0},null,null,null,null,null,null,"Kundens Tlf.nr:",null,null,null,{"$f":"Kundedata!Q8","v":0}]
[]
[null,"Produktinformation - Indtast i alle grønne felter"]
[null,"Vælg tykkelse af fronten",null,null,null,null,null,null,null,null,null,null,null,null,"Finer",null,null,null,"Linoleum",null,null,{"$f":"_xlfn.XLOOKUP(G11,tblProfile[Profiltykkelse],tblProfile[Efter kalibrering])","v":{"$error":"#N/A"}}]
[null,"Vælg kant"]
[null,{"$f":"\"Vælg \"&G12","v":"Vælg "}]
[null,"Vælg forside",null,null,null,null,null,null,null,null,null,null,null,null,null,null,null,null,null,null,null,{"$f":"_xlfn.XLOOKUP(G14,tblBorderSurface[Forsider],tblBorderSurface[Tykkelse (forside)])*2","v":{"$error":"#N/A"}}]
[null,"Vælg overflade"]
[null,null,null,null,null,null,null,null,null,null,null,null,null,null,"Laminat"]
[]
[null,{"$f":"IF(G12=\"Træ\",\"Behandling\",\"\")","v":""}]
[null,"Boringstype"]
[null,"Frontens færdige tykkelse",null,null,null,null,{"$f":"IFERROR((SUM(V11:V18)),\"\")&\" mm\"","v":" mm"}]
[]
[null,"Antal","Højde","x","Bred-de","Vælg profil","Strukturretning",null,null,"Boring friside",null,null,null,"Bemærkning"]
[]
[null,null,null,"x",null,{"$f":"IF(B24=\"\",\"\",\"KR3\")","v":""}]
[null,null,null,{"$f":"IF(B24<>\"\",\"x\",\"\")","v":""},null,""]
[null,null,null,"",null,""]
[null,null,null,"",null,""]
[null,null,null,"",null,""]
[null,null,null,"",null,""]
[null,null,null,"",null,""]
[null,null,null,"",null,""]
[null,null,null,"",null,""]
[null,null,null,"",null,""]
[null,null,null,"",null,""]
[null,null,null,"",null,""]
[null,null,null,"",null,""]
[null,null,null,"",null,""]
[null,null,null,"",null,""]
[null,null,null,"",null,""]
[null,null,null,"",null,""]
[null,null,null,"",null,""]
[null,null,null,"",null,""]
[null,null,null,"",null,""]
[null,null,null,"",null,""]
[null,null,null,"",null,""]
[null,null,null,"",null,""]
[null,null,null,"",null,""]
[null,null,null,"",null,""]
[null,null,null,"",null,""]
[null,null,null,"",null,""]
[null,null,null,"",null,""]
[null,null,null,{"$f":"IF(B51<>\"\",\"x\",\"\")","v":""},null,{"$f":"IF(B52=\"\",\"\",\"KR3\")","v":""}]
[null,null,null,"",null,""]
[null,null,null,"",null,""]
[null,null,null,"",null,""]
[null,null,null,"",null,""]
[null,null,null,"",null,""]
[null,null,null,"",null,""]
[null,null,null,"",null,""]
[null,null,null,"",null,""]
[null,null,null,"",null,""]
[null,null,null,"",null,""]
[null,null,null,"",null,""]
[null,null,null,"",null,""]
[null,null,null,"",null,""]
[null,null,null,"",null,""]
[null,null,null,"",null,""]
[null,null,null,"",null,""]
[null,null,null,"",null,""]
[null,null,null,"",null,""]
[null,null,null,"",null,""]
[null,null,null,"",null,""]
[null,null,null,"",null,""]
[null,null,null,"",null,""]
[null,null,null,"",null,""]
[null,null,null,"",null,""]
[null,null,null,"",null,""]
[null,null,null,"",null,""]
[null,null,null,"",null,""]
[null,null,null,"",null,""]
[null,null,null,"",null,""]
[null,null,null,"",null,""]
[null,null,null,"",null,""]
[null,null,null,"",null,""]
[null,null,null,"",null,""]
[null,null,null,"",null,""]
[null,null,null,"",null,""]
[null,null,null,"",null,""]
[null,null,null,"",null,""]
[null,null,null,"",null,""]
[null,null,null,"",null,""]
[null,null,null,"",null,""]
[null,null,null,"",null,""]
[null,null,null,"",null,""]
[null,null,null,"",null,""]
[null,null,null,"",null,""]
[null,null,null,"",null,""]
[null,null,null,"",null,""]
[null,null,null,"",null,""]
[null,null,null,"",null,""]

{"sheet":"Sokler og tilpasning","index":4,"n_rows":100,"n_cols":19,"rows_kept":100,"cut":false,"hidden":false,"merged":[[10,18,10,19],[15,14,15,15],[99,5,99,7],[99,8,99,10],[99,11,99,12],[99,13,99,16],[99,17,99,20],[97,5,97,7],[97,8,97,10],[97,11,97,12],[97,13,97,16],[97,17,97,20],[98,5,98,7],[98,8,98,10],[98,11,98,12],[98,13,98,16],[98,17,98,20],[95,5,95,7],[95,8,95,10],[95,11,95,12],[95,13,95,16],[95,17,95,20],[96,5,96,7],[96,8,96,10],[96,11,96,12],[96,13,96,16],[96,17,96,20],[93,5,93,7],[93,8,93,10],[93,11,93,12],[93,13,93,16],[93,17,93,20],[94,5,94,7],[94,8,94,10],[94,11,94,12],[94,13,94,16],[94,17,94,20],[91,5,91,7],[91,8,91,10],[91,11,91,12],[91,13,91,16],[91,17,91,20],[92,5,92,7],[92,8,92,10],[92,11,92,12],[92,13,92,16],[92,17,92,20],[89,5,89,7],[89,8,89,10],[89,11,89,12],[89,13,89,16],[89,17,89,20],[90,5,90,7],[90,8,90,10],[90,11,90,12],[90,13,90,16],[90,17,90,20],[87,5,87,7],[87,8,87,10],[87,11,87,12],[87,13,87,16],[87,17,87,20],[88,5,88,7],[88,8,88,10],[88,11,88,12],[88,13,88,16],[88,17,88,20],[85,5,85,7],[85,8,85,10],[85,11,85,12],[85,13,85,16],[85,17,85,20],[86,5,86,7],[86,8,86,10],[86,11,86,12],[86,13,86,16],[86,17,86,20],[83,5,83,7],[83,8,83,10],[83,11,83,12],[83,13,83,16],[83,17,83,20],[84,5,84,7],[84,8,84,10],[84,11,84,12],[84,13,84,16],[84,17,84,20],[81,5,81,7],[81,8,81,10],[81,11,81,12],[81,13,81,16],[81,17,81,20],[82,5,82,7],[82,8,82,10],[82,11,82,12],[82,13,82,16],[82,17,82,20],[79,5,79,7],[79,8,79,10],[79,11,79,12],[79,13,79,16],[79,17,79,20],[80,5,80,7],[80,8,80,10],[80,11,80,12],[80,13,80,16],[80,17,80,20],[77,5,77,7],[77,8,77,10],[77,11,77,12],[77,13,77,16],[77,17,77,20],[78,5,78,7],[78,8,78,10],[78,11,78,12],[78,13,78,16],[78,17,78,20],[75,5,75,7],[75,8,75,10],[75,11,75,12],[75,13,75,16],[75,17,75,20],[76,5,76,7],[76,8,76,10],[76,11,76,12],[76,13,76,16],[76,17,76,20],[73,5,73,7],[73,8,73,10],[73,11,73,12],[73,13,73,16],[73,17,73,20],[74,5,74,7],[74,8,74,10],[74,11,74,12],[74,13,74,16],[74,17,74,20],[71,5,71,7],[71,8,71,10],[71,11,71,12],[71,13,71,16],[71,17,71,20],[72,5,72,7],[72,8,72,10],[72,11,72,12],[72,13,72,16],[72,17,72,20],[69,5,69,7],[69,8,69,10],[69,11,69,12],[69,13,69,16],[69,17,69,20],[70,5,70,7],[70,8,70,10],[70,11,70,12],[70,13,70,16],[70,17,70,20],[67,5,67,7],[67,8,67,10],[67,11,67,12],[67,13,67,16],[67,17,67,20],[68,5,68,7],[68,8,68,10],[68,11,68,12],[68,13,68,16],[68,17,68,20],[65,5,65,7],[65,8,65,10],[65,11,65,12],[65,13,65,16],[65,17,65,20],[66,5,66,7],[66,8,66,10],[66,11,66,12],[66,13,66,16],[66,17,66,20],[63,5,63,7],[63,8,63,10],[63,11,63,12],[63,13,63,16],[63,17,63,20],[64,5,64,7],[64,8,64,10],[64,11,64,12],[64,13,64,16],[64,17,64,20],[61,5,61,7],[61,8,61,10],[61,11,61,12],[61,13,61,16],[61,17,61,20],[62,5,62,7],[62,8,62,10],[62,11,62,12],[62,13,62,16],[62,17,62,20],[59,5,59,7],[59,8,59,10],[59,11,59,12],[59,13,59,16],[59,17,59,20],[60,5,60,7],[60,8,60,10],[60,11,60,12],[60,13,60,16],[60,17,60,20],[57,5,57,7],[57,8,57,10],[57,11,57,12],[57,13,57,16],[57,17,57,20],[58,5,58,7],[58,8,58,10],[58,11,58,12],[58,13,58,16],[58,17,58,20],[55,5,55,7],[55,8,55,10],[55,11,55,12],[55,13,55,16],[55,17,55,20],[56,5,56,7],[56,8,56,10],[56,11,56,12],[56,13,56,16],[56,17,56,20],[53,5,53,7],[53,8,53,10],[53,11,53,12],[53,13,53,16],[53,17,53,20],[54,5,54,7],[54,8,54,10],[54,11,54,12],[54,13,54,16],[54,17,54,20],[51,5,51,7],[51,8,51,10],[51,11,51,12],[51,13,51,16],[51,17,51,20],[52,5,52,7],[52,8,52,10],[52,11,52,12],[52,13,52,16],[52,17,52,20],[3,1,3,4],[3,5,3,10],[3,12,3,15],[3,16,3,20],[4,1,4,4],[4,5,4,10],[4,12,4,15],[4,16,4,20],[11,6,11,12],[7,1,7,4],[7,5,7,10],[7,12,7,15],[7,16,7,20],[10,1,10,5],[10,6,10,12],[5,1,5,4],[5,5,5,10],[5,12,5,15],[5,16,5,20],[6,1,6,4],[6,5,6,10],[6,12,6,15],[6,16,6,20],[10,14,10,15],[16,1,16,5],[17,1,17,5],[18,1,18,5],[14,1,14,5],[15,1,15,5],[19,1,19,5],[11,1,11,5],[12,1,12,5],[13,1,13,5],[21,13,22,16],[21,17,22,20],[21,11,22,12],[21,1,22,1],[21,2,22,2],[21,3,22,3],[21,4,22,4],[21,5,22,7],[21,8,22,10],[25,17,25,20],[26,8,26,10],[26,13,26,16],[26,17,26,20],[26,11,26,12],[25,5,25,7],[25,8,25,10],[25,13,25,16],[23,17,23,20],[24,8,24,10],[24,13,24,16],[24,17,24,20],[23,5,23,7],[23,8,23,10],[23,13,23,16],[12,6,12,12],[13,6,13,12],[14,6,14,12],[15,6,15,12],[19,6,19,12],[16,6,16,12],[31,17,31,20],[24,5,24,7],[26,5,26,7],[28,5,28,7],[30,5,30,7],[23,11,23,12],[24,11,24,12],[25,11,25,12],[31,5,31,7],[31,8,31,10],[31,13,31,16],[31,11,31,12],[29,17,29,20],[30,8,30,10],[30,13,30,16],[30,17,30,20],[30,11,30,12],[29,5,29,7],[32,13,32,16],[32,17,32,20],[33,5,33,7],[33,8,33,10],[33,11,33,12],[33,13,33,16],[33,17,33,20],[17,6,17,12],[18,6,18,12],[32,5,32,7],[32,8,32,10],[32,11,32,12],[29,8,29,10],[29,13,29,16],[29,11,29,12],[27,17,27,20],[28,8,28,10],[28,13,28,16],[28,17,28,20],[28,11,28,12],[27,5,27,7],[27,8,27,10],[27,13,27,16],[27,11,27,12],[34,5,34,7],[34,8,34,10],[34,11,34,12],[34,13,34,16],[34,17,34,20],[35,5,35,7],[35,8,35,10],[35,11,35,12],[35,13,35,16],[35,17,35,20],[36,5,36,7],[36,8,36,10],[36,11,36,12],[36,13,36,16],[36,17,36,20],[37,5,37,7],[37,8,37,10],[37,11,37,12],[37,13,37,16],[37,17,37,20],[38,5,38,7],[38,8,38,10],[38,11,38,12],[38,13,38,16],[38,17,38,20],[39,5,39,7],[39,8,39,10],[39,11,39,12],[39,13,39,16],[39,17,39,20],[40,5,40,7],[40,8,40,10],[40,11,40,12],[40,13,40,16],[40,17,40,20],[41,5,41,7],[41,8,41,10],[41,11,41,12],[41,13,41,16],[41,17,41,20],[42,5,42,7],[42,8,42,10],[42,11,42,12],[42,13,42,16],[42,17,42,20],[43,5,43,7],[43,8,43,10],[43,11,43,12],[43,13,43,16],[43,17,43,20],[44,5,44,7],[44,8,44,10],[44,11,44,12],[44,13,44,16],[44,17,44,20],[45,5,45,7],[45,8,45,10],[45,11,45,12],[45,13,45,16],[45,17,45,20],[46,5,46,7],[46,8,46,10],[46,11,46,12],[46,13,46,16],[46,17,46,20],[47,5,47,7],[47,8,47,10],[47,11,47,12],[47,13,47,16],[47,17,47,20],[50,5,50,7],[50,8,50,10],[50,11,50,12],[50,13,50,16],[50,17,50,20],[48,5,48,7],[48,8,48,10],[48,11,48,12],[48,13,48,16],[48,17,48,20],[49,5,49,7],[49,8,49,10],[49,11,49,12],[49,13,49,16],[49,17,49,20]]}
[]
[]
[]
[null,"Ordre eller tilbud",null,null,null,{"$f":"Kundedata!F4","v":0},null,null,null,null,null,null,"Kundenavn:",null,null,null,{"$f":"Kundedata!Q4","v":0}]
[null,"Forhandler: ",null,null,null,{"$f":"Kundedata!F5","v":0},null,null,null,null,null,null,"Leveringsadresse:",null,null,null,{"$f":"Kundedata!Q5","v":0}]
[null,"Rekv. Nr:",null,null,null,{"$f":"Kundedata!F6","v":0},null,null,null,null,null,null,"Postnr:",null,null,null,{"$f":"Kundedata!Q6","v":0}]
[null,"Kontaktperson: ",null,null,null,{"$f":"Kundedata!F7","v":0},null,null,null,null,null,null,"By:",null,null,null,{"$f":"Kundedata!Q7","v":0}]
[null,"Ønsket leveringsuge",null,null,null,{"$f":"Kundedata!F8","v":0},null,null,null,null,null,null,"Kundens Tlf.nr:",null,null,null,{"$f":"Kundedata!Q8","v":0}]
[]
[null,"Produktinformation - Indtast i alle grønne felter"]
[null,"Vælg tykkelse af fronten",null,null,null,null,null,null,null,null,null,null,null,null,"Finer",null,null,null,"Linoleum"]
[null,"Vælg kant"]
[null,{"$f":"\"Vælg \"&G12","v":"Vælg "}]
[null,"Vælg forside"]
[null,"Vælg overflade"]
[null,null,null,null,null,null,null,null,null,null,null,null,null,null,"Laminat"]
[]
[null,{"$f":"IF(G14=\"Finer\",\"Behandling\",\"\")","v":""}]
[null,"Boringstype"]
[]
[]
[null,"Antal","Højde","x","Bred-de","Strukturretning",null,null,"Kantvalg",null,null,"Vælg profil",null,"Boring",null,null,null,"Bemærkning"]
[]
[null,null,null,"x",null,null,null,null,null,null,null,{"$f":"IFERROR(_xlfn.XLOOKUP(I24,tblBorderPlinth[Kantvalg],tblBorderPlinth[Profil]),\"\")","v":""}]
[null,null,null,{"$f":"IF(B24<>\"\",\"x\",\"\")","v":""},null,null,null,null,null,null,null,{"$f":"IFERROR(_xlfn.XLOOKUP(I25,tblBorderPlinth[Kantvalg],tblBorderPlinth[Profil]),\"\")","v":""}]
[null,null,null,{"$f":"IF(B25<>\"\",\"x\",\"\")","v":""},null,null,null,null,null,null,null,{"$f":"IFERROR(_xlfn.XLOOKUP(I26,tblBorderPlinth[Kantvalg],tblBorderPlinth[Profil]),\"\")","v":""}]
[null,null,null,"",null,null,null,null,null,null,null,{"$f":"IFERROR(_xlfn.XLOOKUP(I27,tblBorderPlinth[Kantvalg],tblBorderPlinth[Profil]),\"\")","v":""}]
[null,null,null,"",null,null,null,null,null,null,null,{"$f":"IFERROR(_xlfn.XLOOKUP(I28,tblBorderPlinth[Kantvalg],tblBorderPlinth[Profil]),\"\")","v":""}]
[null,null,null,"",null,null,null,null,null,null,null,{"$f":"IFERROR(_xlfn.XLOOKUP(I29,tblBorderPlinth[Kantvalg],tblBorderPlinth[Profil]),\"\")","v":""}]
[null,null,null,"",null,null,null,null,null,null,null,{"$f":"IFERROR(_xlfn.XLOOKUP(I30,tblBorderPlinth[Kantvalg],tblBorderPlinth[Profil]),\"\")","v":""}]
[null,null,null,"",null,null,null,null,null,null,null,{"$f":"IFERROR(_xlfn.XLOOKUP(I31,tblBorderPlinth[Kantvalg],tblBorderPlinth[Profil]),\"\")","v":""}]
[null,null,null,"",null,null,null,null,null,null,null,{"$f":"IFERROR(_xlfn.XLOOKUP(I32,tblBorderPlinth[Kantvalg],tblBorderPlinth[Profil]),\"\")","v":""}]
[null,null,null,"",null,null,null,null,null,null,null,{"$f":"IFERROR(_xlfn.XLOOKUP(I33,tblBorderPlinth[Kantvalg],tblBorderPlinth[Profil]),\"\")","v":""}]
[null,null,null,"",null,null,null,null,null,null,null,{"$f":"IFERROR(_xlfn.XLOOKUP(I34,tblBorderPlinth[Kantvalg],tblBorderPlinth[Profil]),\"\")","v":""}]
[null,null,null,"",null,null,null,null,null,null,null,{"$f":"IFERROR(_xlfn.XLOOKUP(I35,tblBorderPlinth[Kantvalg],tblBorderPlinth[Profil]),\"\")","v":""}]
[null,null,null,"",null,null,null,null,null,null,null,{"$f":"IFERROR(_xlfn.XLOOKUP(I36,tblBorderPlinth[Kantvalg],tblBorderPlinth[Profil]),\"\")","v":""}]
[null,null,null,"",null,null,null,null,null,null,null,{"$f":"IFERROR(_xlfn.XLOOKUP(I37,tblBorderPlinth[Kantvalg],tblBorderPlinth[Profil]),\"\")","v":""}]
[null,null,null,"",null,null,null,null,null,null,null,{"$f":"IFERROR(_xlfn.XLOOKUP(I38,tblBorderPlinth[Kantvalg],tblBorderPlinth[Profil]),\"\")","v":""}]
[null,null,null,"",null,null,null,null,null,null,null,{"$f":"IFERROR(_xlfn.XLOOKUP(I39,tblBorderPlinth[Kantvalg],tblBorderPlinth[Profil]),\"\")","v":""}]
[null,null,null,"",null,null,null,null,null,null,null,{"$f":"IFERROR(_xlfn.XLOOKUP(I40,tblBorderPlinth[Kantvalg],tblBorderPlinth[Profil]),\"\")","v":""}]
[null,null,null,"",null,null,null,null,null,null,null,{"$f":"IFERROR(_xlfn.XLOOKUP(I41,tblBorderPlinth[Kantvalg],tblBorderPlinth[Profil]),\"\")","v":""}]
[null,null,null,"",null,null,null,null,null,null,null,{"$f":"IFERROR(_xlfn.XLOOKUP(I42,tblBorderPlinth[Kantvalg],tblBorderPlinth[Profil]),\"\")","v":""}]
[null,null,null,"",null,null,null,null,null,null,null,{"$f":"IFERROR(_xlfn.XLOOKUP(I43,tblBorderPlinth[Kantvalg],tblBorderPlinth[Profil]),\"\")","v":""}]
[null,null,null,"",null,null,null,null,null,null,null,{"$f":"IFERROR(_xlfn.XLOOKUP(I44,tblBorderPlinth[Kantvalg],tblBorderPlinth[Profil]),\"\")","v":""}]
[null,null,null,"",null,null,null,null,null,null,null,{"$f":"IFERROR(_xlfn.XLOOKUP(I45,tblBorderPlinth[Kantvalg],tblBorderPlinth[Profil]),\"\")","v":""}]
[null,null,null,"",null,null,null,null,null,null,null,{"$f":"IFERROR(_xlfn.XLOOKUP(I46,tblBorderPlinth[Kantvalg],tblBorderPlinth[Profil]),\"\")","v":""}]
[null,null,null,"",null,null,null,null,null,null,null,{"$f":"IFERROR(_xlfn.XLOOKUP(I47,tblBorderPlinth[Kantvalg],tblBorderPlinth[Profil]),\"\")","v":""}]
[null,null,null,"",null,null,null,null,null,null,null,{"$f":"IFERROR(_xlfn.XLOOKUP(I48,tblBorderPlinth[Kantvalg],tblBorderPlinth[Profil]),\"\")","v":""}]
[null,null,null,"",null,null,null,null,null,null,null,{"$f":"IFERROR(_xlfn.XLOOKUP(I49,tblBorderPlinth[Kantvalg],tblBorderPlinth[Profil]),\"\")","v":""}]
[null,null,null,"",null,null,null,null,null,null,null,{"$f":"IFERROR(_xlfn.XLOOKUP(I50,tblBorderPlinth[Kantvalg],tblBorderPlinth[Profil]),\"\")","v":""}]
[null,null,null,"",null,null,null,null,null,null,null,{"$f":"IFERROR(_xlfn.XLOOKUP(I51,tblBorderPlinth[Kantvalg],tblBorderPlinth[Profil]),\"\")","v":""}]
[null,null,null,"",null,null,null,null,null,null,null,{"$f":"IFERROR(_xlfn.XLOOKUP(I52,tblBorderPlinth[Kantvalg],tblBorderPlinth[Profil]),\"\")","v":""}]
[null,null,null,"",null,null,null,null,null,null,null,{"$f":"IFERROR(_xlfn.XLOOKUP(I53,tblBorderPlinth[Kantvalg],tblBorderPlinth[Profil]),\"\")","v":""}]
[null,null,null,"",null,null,null,null,null,null,null,{"$f":"IFERROR(_xlfn.XLOOKUP(I54,tblBorderPlinth[Kantvalg],tblBorderPlinth[Profil]),\"\")","v":""}]
[null,null,null,"",null,null,null,null,null,null,null,{"$f":"IFERROR(_xlfn.XLOOKUP(I55,tblBorderPlinth[Kantvalg],tblBorderPlinth[Profil]),\"\")","v":""}]
[null,null,null,"",null,null,null,null,null,null,null,{"$f":"IFERROR(_xlfn.XLOOKUP(I56,tblBorderPlinth[Kantvalg],tblBorderPlinth[Profil]),\"\")","v":""}]
[null,null,null,"",null,null,null,null,null,null,null,{"$f":"IFERROR(_xlfn.XLOOKUP(I57,tblBorderPlinth[Kantvalg],tblBorderPlinth[Profil]),\"\")","v":""}]
[null,null,null,"",null,null,null,null,null,null,null,{"$f":"IFERROR(_xlfn.XLOOKUP(I58,tblBorderPlinth[Kantvalg],tblBorderPlinth[Profil]),\"\")","v":""}]
[null,null,null,"",null,null,null,null,null,null,null,{"$f":"IFERROR(_xlfn.XLOOKUP(I59,tblBorderPlinth[Kantvalg],tblBorderPlinth[Profil]),\"\")","v":""}]
[null,null,null,"",null,null,null,null,null,null,null,{"$f":"IFERROR(_xlfn.XLOOKUP(I60,tblBorderPlinth[Kantvalg],tblBorderPlinth[Profil]),\"\")","v":""}]
[null,null,null,"",null,null,null,null,null,null,null,{"$f":"IFERROR(_xlfn.XLOOKUP(I61,tblBorderPlinth[Kantvalg],tblBorderPlinth[Profil]),\"\")","v":""}]
[null,null,null,"",null,null,null,null,null,null,null,{"$f":"IFERROR(_xlfn.XLOOKUP(I62,tblBorderPlinth[Kantvalg],tblBorderPlinth[Profil]),\"\")","v":""}]
[null,null,null,"",null,null,null,null,null,null,null,{"$f":"IFERROR(_xlfn.XLOOKUP(I63,tblBorderPlinth[Kantvalg],tblBorderPlinth[Profil]),\"\")","v":""}]
[null,null,null,"",null,null,null,null,null,null,null,{"$f":"IFERROR(_xlfn.XLOOKUP(I64,tblBorderPlinth[Kantvalg],tblBorderPlinth[Profil]),\"\")","v":""}]
[null,null,null,"",null,null,null,null,null,null,null,{"$f":"IFERROR(_xlfn.XLOOKUP(I65,tblBorderPlinth[Kantvalg],tblBorderPlinth[Profil]),\"\")","v":""}]
[null,null,null,"",null,null,null,null,null,null,null,{"$f":"IFERROR(_xlfn.XLOOKUP(I66,tblBorderPlinth[Kantvalg],tblBorderPlinth[Profil]),\"\")","v":""}]
[null,null,null,"",null,null,null,null,null,null,null,{"$f":"IFERROR(_xlfn.XLOOKUP(I67,tblBorderPlinth[Kantvalg],tblBorderPlinth[Profil]),\"\")","v":""}]
[null,null,null,"",null,null,null,null,null,null,null,{"$f":"IFERROR(_xlfn.XLOOKUP(I68,tblBorderPlinth[Kantvalg],tblBorderPlinth[Profil]),\"\")","v":""}]
[null,null,null,"",null,null,null,null,null,null,null,{"$f":"IFERROR(_xlfn.XLOOKUP(I69,tblBorderPlinth[Kantvalg],tblBorderPlinth[Profil]),\"\")","v":""}]
[null,null,null,"",null,null,null,null,null,null,null,{"$f":"IFERROR(_xlfn.XLOOKUP(I70,tblBorderPlinth[Kantvalg],tblBorderPlinth[Profil]),\"\")","v":""}]
[null,null,null,"",null,null,null,null,null,null,null,{"$f":"IFERROR(_xlfn.XLOOKUP(I71,tblBorderPlinth[Kantvalg],tblBorderPlinth[Profil]),\"\")","v":""}]
[null,null,null,"",null,null,null,null,null,null,null,{"$f":"IFERROR(_xlfn.XLOOKUP(I72,tblBorderPlinth[Kantvalg],tblBorderPlinth[Profil]),\"\")","v":""}]
[null,null,null,"",null,null,null,null,null,null,null,{"$f":"IFERROR(_xlfn.XLOOKUP(I73,tblBorderPlinth[Kantvalg],tblBorderPlinth[Profil]),\"\")","v":""}]
[null,null,null,"",null,null,null,null,null,null,null,{"$f":"IFERROR(_xlfn.XLOOKUP(I74,tblBorderPlinth[Kantvalg],tblBorderPlinth[Profil]),\"\")","v":""}]
[null,null,null,"",null,null,null,null,null,null,null,{"$f":"IFERROR(_xlfn.XLOOKUP(I75,tblBorderPlinth[Kantvalg],tblBorderPlinth[Profil]),\"\")","v":""}]
[null,null,null,"",null,null,null,null,null,null,null,{"$f":"IFERROR(_xlfn.XLOOKUP(I76,tblBorderPlinth[Kantvalg],tblBorderPlinth[Profil]),\"\")","v":""}]
[null,null,null,"",null,null,null,null,null,null,null,{"$f":"IFERROR(_xlfn.XLOOKUP(I77,tblBorderPlinth[Kantvalg],tblBorderPlinth[Profil]),\"\")","v":""}]
[null,null,null,"",null,null,null,null,null,null,null,{"$f":"IFERROR(_xlfn.XLOOKUP(I78,tblBorderPlinth[Kantvalg],tblBorderPlinth[Profil]),\"\")","v":""}]
[null,null,null,"",null,null,null,null,null,null,null,{"$f":"IFERROR(_xlfn.XLOOKUP(I79,tblBorderPlinth[Kantvalg],tblBorderPlinth[Profil]),\"\")","v":""}]
[null,null,null,"",null,null,null,null,null,null,null,{"$f":"IFERROR(_xlfn.XLOOKUP(I80,tblBorderPlinth[Kantvalg],tblBorderPlinth[Profil]),\"\")","v":""}]
[null,null,null,"",null,null,null,null,null,null,null,{"$f":"IFERROR(_xlfn.XLOOKUP(I81,tblBorderPlinth[Kantvalg],tblBorderPlinth[Profil]),\"\")","v":""}]
[null,null,null,"",null,null,null,null,null,null,null,{"$f":"IFERROR(_xlfn.XLOOKUP(I82,tblBorderPlinth[Kantvalg],tblBorderPlinth[Profil]),\"\")","v":""}]
[null,null,null,"",null,null,null,null,null,null,null,{"$f":"IFERROR(_xlfn.XLOOKUP(I83,tblBorderPlinth[Kantvalg],tblBorderPlinth[Profil]),\"\")","v":""}]
[null,null,null,"",null,null,null,null,null,null,null,{"$f":"IFERROR(_xlfn.XLOOKUP(I84,tblBorderPlinth[Kantvalg],tblBorderPlinth[Profil]),\"\")","v":""}]
[null,null,null,"",null,null,null,null,null,null,null,{"$f":"IFERROR(_xlfn.XLOOKUP(I85,tblBorderPlinth[Kantvalg],tblBorderPlinth[Profil]),\"\")","v":""}]
[null,null,null,"",null,null,null,null,null,null,null,{"$f":"IFERROR(_xlfn.XLOOKUP(I86,tblBorderPlinth[Kantvalg],tblBorderPlinth[Profil]),\"\")","v":""}]
[null,null,null,"",null,null,null,null,null,null,null,{"$f":"IFERROR(_xlfn.XLOOKUP(I87,tblBorderPlinth[Kantvalg],tblBorderPlinth[Profil]),\"\")","v":""}]
[null,null,null,"",null,null,null,null,null,null,null,{"$f":"IFERROR(_xlfn.XLOOKUP(I88,tblBorderPlinth[Kantvalg],tblBorderPlinth[Profil]),\"\")","v":""}]
[null,null,null,"",null,null,null,null,null,null,null,{"$f":"IFERROR(_xlfn.XLOOKUP(I89,tblBorderPlinth[Kantvalg],tblBorderPlinth[Profil]),\"\")","v":""}]
[null,null,null,{"$f":"IF(B89<>\"\",\"x\",\"\")","v":""},null,null,null,null,null,null,null,{"$f":"IFERROR(_xlfn.XLOOKUP(I90,tblBorderPlinth[Kantvalg],tblBorderPlinth[Profil]),\"\")","v":""}]
[null,null,null,"",null,null,null,null,null,null,null,{"$f":"IFERROR(_xlfn.XLOOKUP(I91,tblBorderPlinth[Kantvalg],tblBorderPlinth[Profil]),\"\")","v":""}]
[null,null,null,"",null,null,null,null,null,null,null,{"$f":"IFERROR(_xlfn.XLOOKUP(I92,tblBorderPlinth[Kantvalg],tblBorderPlinth[Profil]),\"\")","v":""}]
[null,null,null,"",null,null,null,null,null,null,null,{"$f":"IFERROR(_xlfn.XLOOKUP(I93,tblBorderPlinth[Kantvalg],tblBorderPlinth[Profil]),\"\")","v":""}]
[null,null,null,"",null,null,null,null,null,null,null,{"$f":"IFERROR(_xlfn.XLOOKUP(I94,tblBorderPlinth[Kantvalg],tblBorderPlinth[Profil]),\"\")","v":""}]
[null,null,null,"",null,null,null,null,null,null,null,{"$f":"IFERROR(_xlfn.XLOOKUP(I95,tblBorderPlinth[Kantvalg],tblBorderPlinth[Profil]),\"\")","v":""}]
[null,null,null,"",null,null,null,null,null,null,null,{"$f":"IFERROR(_xlfn.XLOOKUP(I96,tblBorderPlinth[Kantvalg],tblBorderPlinth[Profil]),\"\")","v":""}]
[null,null,null,"",null,null,null,null,null,null,null,{"$f":"IFERROR(_xlfn.XLOOKUP(I97,tblBorderPlinth[Kantvalg],tblBorderPlinth[Profil]),\"\")","v":""}]
[null,null,null,"",null,null,null,null,null,null,null,{"$f":"IFERROR(_xlfn.XLOOKUP(I98,tblBorderPlinth[Kantvalg],tblBorderPlinth[Profil]),\"\")","v":""}]
[null,null,null,"",null,null,null,null,null,null,null,{"$f":"IFERROR(_xlfn.XLOOKUP(I99,tblBorderPlinth[Kantvalg],tblBorderPlinth[Profil]),\"\")","v":""}]
[null,null,null,"",null,null,null,null,null,null,null,{"$f":"IFERROR(_xlfn.XLOOKUP(I100,tblBorderPlinth[Kantvalg],tblBorderPlinth[Profil]),\"\")","v":""}]

{"sheet":"Reoler","index":5,"n_rows":100,"n_cols":20,"rows_kept":100,"cut":false,"hidden":false,"merged":[[15,14,15,15],[15,18,15,19],[99,7,99,8],[99,9,99,12],[99,13,99,16],[99,17,99,18],[99,19,99,22],[97,7,97,8],[97,9,97,12],[97,13,97,16],[97,17,97,18],[97,19,97,22],[98,7,98,8],[98,9,98,12],[98,13,98,16],[98,17,98,18],[98,19,98,22],[95,7,95,8],[95,9,95,12],[95,13,95,16],[95,17,95,18],[95,19,95,22],[96,7,96,8],[96,9,96,12],[96,13,96,16],[96,17,96,18],[96,19,96,22],[93,7,93,8],[93,9,93,12],[93,13,93,16],[93,17,93,18],[93,19,93,22],[94,7,94,8],[94,9,94,12],[94,13,94,16],[94,17,94,18],[94,19,94,22],[91,7,91,8],[91,9,91,12],[91,13,91,16],[91,17,91,18],[91,19,91,22],[92,7,92,8],[92,9,92,12],[92,13,92,16],[92,17,92,18],[92,19,92,22],[89,7,89,8],[89,9,89,12],[89,13,89,16],[89,17,89,18],[89,19,89,22],[90,7,90,8],[90,9,90,12],[90,13,90,16],[90,17,90,18],[90,19,90,22],[87,7,87,8],[87,9,87,12],[87,13,87,16],[87,17,87,18],[87,19,87,22],[88,7,88,8],[88,9,88,12],[88,13,88,16],[88,17,88,18],[88,19,88,22],[85,7,85,8],[85,9,85,12],[85,13,85,16],[85,17,85,18],[85,19,85,22],[86,7,86,8],[86,9,86,12],[86,13,86,16],[86,17,86,18],[86,19,86,22],[83,7,83,8],[83,9,83,12],[83,13,83,16],[83,17,83,18],[83,19,83,22],[84,7,84,8],[84,9,84,12],[84,13,84,16],[84,17,84,18],[84,19,84,22],[81,7,81,8],[81,9,81,12],[81,13,81,16],[81,17,81,18],[81,19,81,22],[82,7,82,8],[82,9,82,12],[82,13,82,16],[82,17,82,18],[82,19,82,22],[79,7,79,8],[79,9,79,12],[79,13,79,16],[79,17,79,18],[79,19,79,22],[80,7,80,8],[80,9,80,12],[80,13,80,16],[80,17,80,18],[80,19,80,22],[77,7,77,8],[77,9,77,12],[77,13,77,16],[77,17,77,18],[77,19,77,22],[78,7,78,8],[78,9,78,12],[78,13,78,16],[78,17,78,18],[78,19,78,22],[75,7,75,8],[75,9,75,12],[75,13,75,16],[75,17,75,18],[75,19,75,22],[76,7,76,8],[76,9,76,12],[76,13,76,16],[76,17,76,18],[76,19,76,22],[73,7,73,8],[73,9,73,12],[73,13,73,16],[73,17,73,18],[73,19,73,22],[74,7,74,8],[74,9,74,12],[74,13,74,16],[74,17,74,18],[74,19,74,22],[71,7,71,8],[71,9,71,12],[71,13,71,16],[71,17,71,18],[71,19,71,22],[72,7,72,8],[72,9,72,12],[72,13,72,16],[72,17,72,18],[72,19,72,22],[69,7,69,8],[69,9,69,12],[69,13,69,16],[69,17,69,18],[69,19,69,22],[70,7,70,8],[70,9,70,12],[70,13,70,16],[70,17,70,18],[70,19,70,22],[67,7,67,8],[67,9,67,12],[67,13,67,16],[67,17,67,18],[67,19,67,22],[68,7,68,8],[68,9,68,12],[68,13,68,16],[68,17,68,18],[68,19,68,22],[65,7,65,8],[65,9,65,12],[65,13,65,16],[65,17,65,18],[65,19,65,22],[66,7,66,8],[66,9,66,12],[66,13,66,16],[66,17,66,18],[66,19,66,22],[63,7,63,8],[63,9,63,12],[63,13,63,16],[63,17,63,18],[63,19,63,22],[64,7,64,8],[64,9,64,12],[64,13,64,16],[64,17,64,18],[64,19,64,22],[61,7,61,8],[61,9,61,12],[61,13,61,16],[61,17,61,18],[61,19,61,22],[62,7,62,8],[62,9,62,12],[62,13,62,16],[62,17,62,18],[62,19,62,22],[59,7,59,8],[59,9,59,12],[59,13,59,16],[59,17,59,18],[59,19,59,22],[60,7,60,8],[60,9,60,12],[60,13,60,16],[60,17,60,18],[60,19,60,22],[57,7,57,8],[57,9,57,12],[57,13,57,16],[57,17,57,18],[57,19,57,22],[58,7,58,8],[58,9,58,12],[58,13,58,16],[58,17,58,18],[58,19,58,22],[55,7,55,8],[55,9,55,12],[55,13,55,16],[55,17,55,18],[55,19,55,22],[56,7,56,8],[56,9,56,12],[56,13,56,16],[56,17,56,18],[56,19,56,22],[53,7,53,8],[53,9,53,12],[53,13,53,16],[53,17,53,18],[53,19,53,22],[54,7,54,8],[54,9,54,12],[54,13,54,16],[54,17,54,18],[54,19,54,22],[51,7,51,8],[51,9,51,12],[51,13,51,16],[51,17,51,18],[51,19,51,22],[52,7,52,8],[52,9,52,12],[52,13,52,16],[52,17,52,18],[52,19,52,22],[3,1,3,4],[3,5,3,10],[3,12,3,15],[3,16,3,20],[4,1,4,4],[4,5,4,10],[4,12,4,15],[4,16,4,20],[7,1,7,4],[7,5,7,10],[7,12,7,15],[7,16,7,20],[10,1,10,5],[10,6,10,12],[5,1,5,4],[5,5,5,10],[5,12,5,15],[5,16,5,20],[6,1,6,4],[6,5,6,10],[6,12,6,15],[6,16,6,20],[10,14,10,15],[10,18,10,19],[17,1,17,5],[18,1,18,5],[19,1,19,5],[18,6,18,12],[14,1,14,5],[15,1,15,5],[16,1,16,5],[11,1,11,5],[12,1,12,5],[13,1,13,5],[11,6,11,12],[21,19,22,22],[22,9,22,12],[21,7,22,8],[34,17,34,18],[34,19,34,22],[21,1,22,1],[21,2,22,2],[21,3,22,3],[21,4,22,4],[26,19,26,22],[25,9,25,12],[25,13,25,16],[25,7,25,8],[26,7,26,8],[33,19,33,22],[34,7,34,8],[23,19,23,22],[24,9,24,12],[24,13,24,16],[24,19,24,22],[23,9,23,12],[23,13,23,16],[23,7,23,8],[24,7,24,8],[31,9,31,12],[31,13,31,16],[31,17,31,18],[31,7,31,8],[34,9,34,12],[34,13,34,16],[32,19,32,22],[33,7,33,8],[29,19,29,22],[30,9,30,12],[30,13,30,16],[30,19,30,22],[30,17,30,18],[29,9,29,12],[29,13,29,16],[29,17,29,18],[29,7,29,8],[30,7,30,8],[33,9,33,12],[33,13,33,16],[33,17,33,18],[31,19,31,22],[28,7,28,8],[21,5,22,5],[21,6,22,6],[21,17,22,18],[23,17,23,18],[24,17,24,18],[25,17,25,18],[26,17,26,18],[27,17,27,18],[25,19,25,22],[26,9,26,12],[19,6,19,12],[32,7,32,8],[32,9,32,12],[32,13,32,16],[32,17,32,18],[12,6,12,12],[13,6,13,12],[14,6,14,12],[15,6,15,12],[16,6,16,12],[17,6,17,12],[26,13,26,16],[21,9,21,12],[21,13,22,16],[27,19,27,22],[28,9,28,12],[28,13,28,16],[28,19,28,22],[28,17,28,18],[27,9,27,12],[27,13,27,16],[27,7,27,8],[35,7,35,8],[35,9,35,12],[35,13,35,16],[35,17,35,18],[35,19,35,22],[36,7,36,8],[36,9,36,12],[36,13,36,16],[36,17,36,18],[36,19,36,22],[37,7,37,8],[37,9,37,12],[37,13,37,16],[37,17,37,18],[37,19,37,22],[38,7,38,8],[38,9,38,12],[38,13,38,16],[38,17,38,18],[38,19,38,22],[39,7,39,8],[39,9,39,12],[39,13,39,16],[39,17,39,18],[39,19,39,22],[40,7,40,8],[40,9,40,12],[40,13,40,16],[40,17,40,18],[40,19,40,22],[41,7,41,8],[41,9,41,12],[41,13,41,16],[41,17,41,18],[41,19,41,22],[42,7,42,8],[42,9,42,12],[42,13,42,16],[42,17,42,18],[42,19,42,22],[43,7,43,8],[43,9,43,12],[43,13,43,16],[43,17,43,18],[43,19,43,22],[44,7,44,8],[44,9,44,12],[44,13,44,16],[44,17,44,18],[44,19,44,22],[45,7,45,8],[45,9,45,12],[45,13,45,16],[45,17,45,18],[45,19,45,22],[46,7,46,8],[46,9,46,12],[46,13,46,16],[46,17,46,18],[46,19,46,22],[47,7,47,8],[47,9,47,12],[47,13,47,16],[47,17,47,18],[47,19,47,22],[48,7,48,8],[48,9,48,12],[48,13,48,16],[48,17,48,18],[48,19,48,22],[49,7,49,8],[49,9,49,12],[49,13,49,16],[49,17,49,18],[49,19,49,22],[50,7,50,8],[50,9,50,12],[50,13,50,16],[50,17,50,18],[50,19,50,22]]}
[]
[]
[]
[null,"Ordre eller tilbud",null,null,null,{"$f":"Kundedata!F4","v":0},null,null,null,null,null,null,"Kundenavn:",null,null,null,{"$f":"Kundedata!Q4","v":0}]
[null,"Forhandler: ",null,null,null,{"$f":"Kundedata!F5","v":0},null,null,null,null,null,null,"Leveringsadresse:",null,null,null,{"$f":"Kundedata!Q5","v":0}]
[null,"Rekv. Nr:",null,null,null,{"$f":"Kundedata!F6","v":0},null,null,null,null,null,null,"Postnr:",null,null,null,{"$f":"Kundedata!Q6","v":0}]
[null,"Kontaktperson: ",null,null,null,{"$f":"Kundedata!F7","v":0},null,null,null,null,null,null,"By:",null,null,null,{"$f":"Kundedata!Q7","v":0}]
[null,"Ønsket leveringsuge",null,null,null,{"$f":"Kundedata!F8","v":0},null,null,null,null,null,null,"Kundens Tlf.nr:",null,null,null,{"$f":"Kundedata!Q8","v":0}]
[]
[null,"Produktinformation - Indtast i alle grønne felter"]
[null,"Vælg tykkelse af fronten",null,null,null,null,null,null,null,null,null,null,null,null,"Finer",null,null,null,"Linoleum"]
[null,"Vælg kant"]
[null,{"$f":"\"Vælg \"&G12","v":"Vælg "}]
[null,"Vælg forside"]
[null,"Vælg overflade"]
[null,null,null,null,null,null,null,null,null,null,null,null,null,null,"Laminat",null,null,null,"Reoler"]
[]
[null,{"$f":"IF(G14=\"Finer\",\"Finerretning\",\"\")","v":""}]
[null,{"$f":"IF(G12=\"Træ\",\"Behandling\",\"\")","v":""}]
[]
[]
[null,"Antal","Højde","x","Bred-de","x","Dybde","Vælg profil",null,null,null,null,null,"Antal hylder (mellem 1 og 8)",null,null,null,"Hylde fordeling",null,"Bemærkning"]
[null,null,null,null,null,null,null,null,null,"Boring"]
[null,null,null,"x",null,"x",null,{"$f":"IF(B24=\"\",\"\",\"L4 Retkant\")","v":""}]
[null,null,null,{"$f":"IF(B24<>\"\",\"x\",\"\")","v":""},null,{"$f":"IF(B24<>\"\",\"x\",\"\")","v":""},null,{"$f":"IF(B25=\"\",\"\",\"L4 Retkant\")","v":""}]
[null,null,null,{"$f":"IF(B25<>\"\",\"x\",\"\")","v":""},null,{"$f":"IF(B25<>\"\",\"x\",\"\")","v":""},null,{"$f":"IF(B26=\"\",\"\",\"L4 Retkant\")","v":""}]
[null,null,null,"",null,"",null,""]
[null,null,null,"",null,"",null,""]
[null,null,null,"",null,"",null,""]
[null,null,null,"",null,"",null,""]
[null,null,null,"",null,"",null,""]
[null,null,null,"",null,"",null,""]
[null,null,null,"",null,"",null,""]
[null,null,null,"",null,"",null,""]
[null,null,null,"",null,"",null,""]
[null,null,null,"",null,"",null,""]
[null,null,null,"",null,"",null,""]
[null,null,null,"",null,"",null,""]
[null,null,null,"",null,"",null,""]
[null,null,null,"",null,"",null,""]
[null,null,null,"",null,"",null,""]
[null,null,null,"",null,"",null,""]
[null,null,null,"",null,"",null,""]
[null,null,null,"",null,"",null,""]
[null,null,null,"",null,"",null,""]
[null,null,null,"",null,"",null,""]
[null,null,null,"",null,"",null,""]
[null,null,null,"",null,"",null,""]
[null,null,null,"",null,"",null,""]
[null,null,null,"",null,"",null,""]
[null,null,null,"",null,"",null,""]
[null,null,null,"",null,"",null,""]
[null,null,null,"",null,"",null,""]
[null,null,null,"",null,"",null,""]
[null,null,null,"",null,"",null,""]
[null,null,null,"",null,"",null,""]
[null,null,null,"",null,"",null,""]
[null,null,null,"",null,"",null,""]
[null,null,null,"",null,"",null,""]
[null,null,null,"",null,"",null,""]
[null,null,null,"",null,"",null,""]
[null,null,null,"",null,"",null,""]
[null,null,null,"",null,"",null,""]
[null,null,null,"",null,"",null,""]
[null,null,null,"",null,"",null,""]
[null,null,null,"",null,"",null,""]
[null,null,null,"",null,"",null,""]
[null,null,null,"",null,"",null,""]
[null,null,null,"",null,"",null,""]
[null,null,null,"",null,"",null,""]
[null,null,null,"",null,"",null,""]
[null,null,null,"",null,"",null,""]
[null,null,null,"",null,"",null,""]
[null,null,null,"",null,"",null,""]
[null,null,null,"",null,"",null,""]
[null,null,null,"",null,"",null,""]
[null,null,null,"",null,"",null,""]
[null,null,null,"",null,"",null,""]
[null,null,null,"",null,"",null,""]
[null,null,null,"",null,"",null,""]
[null,null,null,"",null,"",null,""]
[null,null,null,"",null,"",null,""]
[null,null,null,"",null,"",null,""]
[null,null,null,"",null,"",null,""]
[null,null,null,"",null,"",null,""]
[null,null,null,"",null,"",null,""]
[null,null,null,"",null,"",null,""]
[null,null,null,"",null,"",null,""]
[null,null,null,"",null,"",null,""]
[null,null,null,{"$f":"IF(B89<>\"\",\"x\",\"\")","v":""},null,{"$f":"IF(B89<>\"\",\"x\",\"\")","v":""},null,{"$f":"IF(B90=\"\",\"\",\"L4 Retkant\")","v":""}]
[null,null,null,"",null,"",null,""]
[null,null,null,"",null,"",null,""]
[null,null,null,"",null,"",null,""]
[null,null,null,"",null,"",null,""]
[null,null,null,"",null,"",null,""]
[null,null,null,"",null,"",null,""]
[null,null,null,"",null,"",null,""]
[null,null,null,"",null,"",null,""]
[null,null,null,"",null,"",null,""]
[null,null,null,"",null,"",null,""]

{"sheet":"Hylder og Baldakin","index":6,"n_rows":100,"n_cols":22,"rows_kept":100,"cut":false,"hidden":false,"merged":[[5,1,5,4],[5,5,5,10],[5,12,5,15],[5,16,5,20],[6,1,6,4],[6,5,6,10],[6,12,6,15],[6,16,6,20],[3,1,3,4],[3,5,3,10],[3,12,3,15],[3,16,3,20],[4,1,4,4],[4,5,4,10],[4,12,4,15],[4,16,4,20],[7,1,7,4],[7,5,7,10],[7,12,7,15],[7,16,7,20],[10,1,10,5],[10,6,10,12],[10,14,10,15],[10,18,10,19],[11,1,11,5],[12,1,12,5],[13,1,13,5],[11,6,11,12],[12,6,12,12],[13,6,13,12],[14,1,14,5],[15,1,15,5],[16,1,16,5],[14,6,14,12],[15,6,15,12],[16,6,16,12],[15,17,15,20],[21,1,22,1],[21,2,22,2],[21,3,22,3],[21,4,22,4],[21,5,22,5],[17,1,17,5],[18,1,18,5],[17,6,17,12],[18,6,18,12],[19,6,19,12],[19,1,19,5],[15,14,15,15]]}
[]
[]
[]
[null,"Ordre eller tilbud",null,null,null,{"$f":"Kundedata!F4","v":0},null,null,null,null,null,null,"Kundenavn:",null,null,null,{"$f":"Kundedata!Q4","v":0}]
[null,"Forhandler: ",null,null,null,{"$f":"Kundedata!F5","v":0},null,null,null,null,null,null,"Leveringsadresse:",null,null,null,{"$f":"Kundedata!Q5","v":0}]
[null,"Rekv. Nr:",null,null,null,{"$f":"Kundedata!F6","v":0},null,null,null,null,null,null,"Postnr:",null,null,null,{"$f":"Kundedata!Q6","v":0}]
[null,"Kontaktperson: ",null,null,null,{"$f":"Kundedata!F7","v":0},null,null,null,null,null,null,"By:",null,null,null,{"$f":"Kundedata!Q7","v":0}]
[null,"Ønsket leveringsuge",null,null,null,{"$f":"Kundedata!F8","v":0},null,null,null,null,null,null,"Kundens Tlf.nr:",null,null,null,{"$f":"Kundedata!Q8","v":0}]
[]
[null,"Produktinformation - Indtast i alle grønne felter"]
[null,"Vælg tykkelse af fronten",null,null,null,null,null,null,null,null,null,null,null,null,"Finer",null,null,null,"Linoleum",null,null,{"$f":"_xlfn.XLOOKUP(G11,tblProfile[Profiltykkelse],tblProfile[Efter kalibrering])","v":{"$error":"#N/A"}}]
[null,"Vælg kant"]
[null,{"$f":"\"Vælg \"&G12","v":"Vælg "}]
[null,"Vælg forside",null,null,null,null,null,null,null,null,null,null,null,null,null,null,null,null,null,null,null,{"$f":"_xlfn.XLOOKUP(G14,tblBorderSurface[Forsider],tblBorderSurface[Tykkelse (forside)])*2","v":{"$error":"#N/A"}}]
[null,"Vælg overflade"]
[null,null,null,null,null,null,null,null,null,null,null,null,null,null,"Laminat",null,null,"Hylder og Baldakiner"]
[]
[null,{"$f":"IF(G14=\"Finer\",\"Finerretning\",\"\")","v":""}]
[null,{"$f":"IF(G12=\"Træ\",\"Behandling\",\"\")","v":""}]
[null,"Hyldens/Baldakins færdige tykkelse",null,null,null,null,{"$f":"IFERROR((SUM(V11:V19)),\"\")&\" mm\"","v":" mm"}]
[]
[null,"Antal","Højde","x","Bred-de","Vælg profil",null,"Symboler:     Finér-retning: >>     Forkant= 0     Boring Spot (ø 55)= Ø     Endebæring= EB     Skjult ophæng= T    "]
[null,null,null,null,null,null,null,"Tegning SET OVENFRA (Husk placering af endebæring (EB) og skjult ophæng (T)):"]
[null,null,null,"x",null,{"$f":"IF(B24=\"\",\"\",\"KR3\")","v":""}]
[null,null,null,{"$f":"IF(B24<>\"\",\"x\",\"\")","v":""},null,{"$f":"IF(B25=\"\",\"\",\"KR3\")","v":""}]
[null,null,null,{"$f":"IF(B25<>\"\",\"x\",\"\")","v":""},null,{"$f":"IF(B26=\"\",\"\",\"KR3\")","v":""}]
[null,null,null,"",null,""]
[null,null,null,"",null,""]
[null,null,null,"",null,""]
[null,null,null,"",null,""]
[null,null,null,"",null,""]
[null,null,null,"",null,""]
[null,null,null,"",null,""]
[null,null,null,"",null,""]
[null,null,null,"",null,""]
[null,null,null,"",null,""]
[null,null,null,"",null,""]
[null,null,null,"",null,""]
[null,null,null,"",null,""]
[null,null,null,"",null,""]
[null,null,null,"",null,""]
[null,null,null,"",null,""]
[null,null,null,"",null,""]
[null,null,null,"",null,""]
[null,null,null,"",null,""]
[null,null,null,"",null,""]
[null,null,null,"",null,""]
[null,null,null,"",null,""]
[null,null,null,"",null,""]
[null,null,null,"",null,""]
[null,null,null,"",null,""]
[null,null,null,"",null,""]
[null,null,null,"",null,""]
[null,null,null,"",null,""]
[null,null,null,"",null,""]
[null,null,null,"",null,""]
[null,null,null,"",null,""]
[null,null,null,"",null,""]
[null,null,null,"",null,""]
[null,null,null,"",null,""]
[null,null,null,"",null,""]
[null,null,null,"",null,""]
[null,null,null,"",null,""]
[null,null,null,"",null,""]
[null,null,null,"",null,""]
[null,null,null,"",null,""]
[null,null,null,"",null,""]
[null,null,null,"",null,""]
[null,null,null,"",null,""]
[null,null,null,"",null,""]
[null,null,null,"",null,""]
[null,null,null,"",null,""]
[null,null,null,"",null,""]
[null,null,null,"",null,""]
[null,null,null,"",null,""]
[null,null,null,"",null,""]
[null,null,null,"",null,""]
[null,null,null,"",null,""]
[null,null,null,"",null,""]
[null,null,null,"",null,""]
[null,null,null,"",null,""]
[null,null,null,"",null,""]
[null,null,null,"",null,""]
[null,null,null,"",null,""]
[null,null,null,"",null,""]
[null,null,null,"",null,""]
[null,null,null,"",null,""]
[null,null,null,"",null,""]
[null,null,null,"",null,""]
[null,null,null,{"$f":"IF(B89<>\"\",\"x\",\"\")","v":""},null,{"$f":"IF(B90=\"\",\"\",\"KR3\")","v":""}]
[null,null,null,"",null,""]
[null,null,null,"",null,""]
[null,null,null,"",null,""]
[null,null,null,"",null,""]
[null,null,null,"",null,""]
[null,null,null,"",null,""]
[null,null,null,"",null,""]
[null,null,null,"",null,""]
[null,null,null,"",null,""]
[null,null,null,"",null,""]

{"sheet":"Stamdata","index":7,"n_rows":63,"n_cols":170,"rows_kept":63,"cut":false,"hidden":true,"merged":[[1,13,1,16],[5,13,5,16],[5,19,5,21],[3,41,3,42],[3,28,3,29],[5,25,5,26],[3,19,3,21],[5,2,5,4],[5,8,5,9],[3,2,3,4],[3,8,3,9],[3,13,3,17],[3,25,3,26],[3,48,3,49],[1,62,1,69],[5,62,5,69],[3,31,3,32]]}
[]
["Overskrift",null,"Profiltykkelser",null,null,null,"Profiltykkelser - Baldakin",null,"Kantvalg og træsort",null,null,"Kanter til Sokler",null,"For- og bagsidevalg samt tykkelse af overflader",null,null,null,null,null,"Overfladetyper",null,null,null,"Finerretning",null,"Behandling af træ",null,null,"Boringstype - Hængsel",null,null,"Boringstype - Hængsel",null,null,"Boringstype - Skuffe",null,null,"Greb placering",null,"Samlingstyper",null,"Flerdelte",null,null,"Vitrineliste",null,"S-Line 19 - højder",null,"Boring frisider",null,null,"Kantvalg til sokler",null,null,"Boring til sokler",null,null,null,"Boring til reoler",null,"Hyldefordeling",null,"Valgmuligheder i produktinformation",null,null,null,null,null,null,null,null,"Unik liste af tykkelser",null,"Unik liste af profiler",null,"Unik liste af kanter",null,"Unik liste af Træ/ABS",null,"Unik liste af Træ/ABS",null,"Unik liste af Træ/ABS",null,"Unik liste af Træ/ABS",null,"Unik liste af Træ/ABS",null,"Unik liste af Træ/ABS",null,"Unik liste af forside",null,"Unik liste af forside",null,"Unik liste af forside",null,"Unik liste af forside",null,"Unik liste af forside",null,null,null,null,null,"Unik liste af overflade (Forside)",null,null,null,null,null,"Unik liste af overflade (Forside)",null,null,null,null,null,"Unik liste af overflade (Forside)",null,null,null,null,null,"Unik liste af overflade (Forside)",null,null,null,null,null,"Unik liste af overflade (Forside)",null,null,null,null,null,"Unik liste af overflade (Forside)",null,null,null,null,null,"Unik liste af overflade (Bagside)",null,"Unik liste af behandling",null,"Unik liste af behandling",null,"Unik liste af behandling",null,"Unik liste af behandling",null,"Unik liste af behandling",null,"Unik liste af behandling",null,"Unik liste af boringstyper",null,"Unik liste af flerdelt",null,"Unik liste af boring til skuffe",null,"Unik liste af boring til skuffe",null,"Unik liste af boring til hængsel",null,"Unik liste af boring til hængsel",null,"Unik liste af boring",null,"Unik liste af boringstype til sokler",null,"Unik liste af boring til sokler"]
[]
["Benyttes til",null,"Fronter, Gavle. Unik liste for tykkelse og profiler",null,null,null,"Baldakin",null,"Unik liste til kanter og træ/ABS",null,null,"Sokler",null,"Fronter (tykkelse) samt Unik lister af for- og bagsider",null,null,null,null,null,"Unik liste af overflade for- og bagsider",null,null,null,"Fronter, Gavle, Reoler, Baldakin",null,"Unik lister for behandling",null,null,"Fronter",null,null,"S-Line",null,null,"Fronter og S-Line",null,null,"Fronter",null,"Fronter",null,"Unik liste af flerdelt",null,null,"Fronter",null,"S-Line",null,"Unik liste af boring til frisider",null,null,"Sokler, ",null,null,"Sokler",null,null,null,"Reoler",null,"Reoler",null,"Overblik",null,null,null,null,null,null,null,null,"Fronter og gavle",null,"Fronter",null,"Fronter, Gavle, Reoler, Baldakin",null,"Fronter",null,"S-Line 19",null,"Gavle",null,"Sokler og tilpasning",null,"Reoler",null,"Baldakin",null,"Fronter",null,"Gavle",null,"Sokler",null,"Reoler",null,"Baldakin",null,"Fronter",null,"Fronter",null,"Fronter",null,"S-Line",null,"S-Line",null,"S-Line",null,"Gavle",null,"Gavle",null,"Gavle",null,"Sokler",null,"Sokler",null,"Sokler",null,"Reoler",null,"Reoler",null,"Reoler",null,"Baldakin",null,"Baldakin",null,"Baldakin",null,"Fronter",null,"Fronter",null,"Fronter",null,"Fronter",null,"S-Line",null,"Gavle",null,"Sokler",null,"Reoler",null,"Baldakin",null,"Fronter, S-Line, Gavle, Sokler, Reoler",null,"Fronter",null,"Fronter",null,"S-Line",null,"Fronter",null,"S-Line",null,"Frisider",null,"Sokler",null,"Sokler"]
[]
["Tekst",null,"Her er alle tykkelser og tilhørende profiler samt tykkelse efter kalibrering",null,null,null,"Alle tykkelser til baldakin",null,"Alle kantvalg og tilhørende Træsort eller ABS-nr.",null,null,"Valg af endekanter til sokler, hvor enden af soklen støder mod siden af tværgående sokkel",null,"Mulige for- og bagsidevalg ift. Valg af kant",null,null,null,null,null,"Mulige valg af overflade iht. Den valgte overfladetype.\nFor finer er der yderligere neddeling iht. Valg af træsort",null,null,null,null,null,"Forskellige træsorter kan få forskellig behandling",null,null,null,null,null,null,null,null,null,null,null,null,null,null,null,null,null,null,null,null,null,null,null,null,null,null,null,null,null,null,null,null,null,null,null,null,"Tabellen viser en oversigt over de produktinformationer der angives i rækkefølge for hvert produkt (faneblad)",null,null,null,null,null,null,null,null,"Liste med tykkelser iht. tblProfile",null,"Liste med profiler iht. Tykkelse fra tblProfile",null,"Liste med kanter iht. tblBorder",null,"Liste med træsort/ABS ift valg af kant i tblBorder",null,"Liste med træsort/ABS ift valg af kant i tblBorder",null,"Liste med træsort/ABS ift valg af kant i tblBorder",null,"Liste med træsort/ABS ift valg af kant i tblBorder",null,"Liste med træsort/ABS ift valg af kant i tblBorder",null,"Liste med træsort/ABS ift valg af kant i tblBorder",null,"Liste med forside ift. Valg af kant",null,"Liste med forside ift. Valg af kant",null,"Liste med forside ift. Valg af kant",null,"Liste med forside ift. Valg af kant",null,"Liste med forside ift. Valg af kant",null,"Andre - liste. Beregner hvilke overfalder der matcher overflade type",null,"Finer - liste. Beregner på baggrund af tblSurface hvilke overflade der matcher træsort ved finer",null,"Hvis der er valgt Finer benyttes listen Finer ellers benyttes listen Andre",null,"Andre - liste. Beregner hvilke overfalder der matcher overflade type",null,"Finer - liste. Beregner på baggrund af tblSurface hvilke overflade der matcher træsort ved finer",null,"Hvis der er valgt Finer benyttes listen Finer ellers benyttes listen Andre",null,"Andre - liste. Beregner hvilke overfalder der matcher overflade type",null,"Finer - liste. Beregner på baggrund af tblSurface hvilke overflade der matcher træsort ved finer",null,"Hvis der er valgt Finer benyttes listen Finer ellers benyttes listen Andre",null,"Andre - liste. Beregner hvilke overfalder der matcher overflade type",null,"Finer - liste. Beregner på baggrund af tblSurface hvilke overflade der matcher træsort ved finer",null,"Hvis der er valgt Finer benyttes listen Finer ellers benyttes listen Andre",null,"Andre - liste. Beregner hvilke overfalder der matcher overflade type",null,"Finer - liste. Beregner på baggrund af tblSurface hvilke overflade der matcher træsort ved finer",null,"Hvis der er valgt Finer benyttes listen Finer ellers benyttes listen Andre",null,"Andre - liste. Beregner hvilke overfalder der matcher overflade type",null,"Finer - liste. Beregner på baggrund af tblSurface hvilke overflade der matcher træsort ved finer",null,"Hvis der er valgt Finer benyttes listen Finer ellers benyttes listen Andre",null,"Finerlister, der beregnes på baggrund af Linoleum.",null,"Højtrykslaminat liste, der beregnes på baggrund af Fenix Laminat",null,"Afhængig af forside overflade kan der vælges mellem flere forskellige bagsider. Disse afhænger af den valgte overflade på forsiden",null,"Lak behandling af overfladen afhængig af valg af træsort",null,"Lak behandling af overfladen afhængig af valg af træsort",null,"Lak behandling af overfladen afhængig af valg af træsort",null,"Lak behandling af overfladen afhængig af valg af træsort",null,"Lak behandling af overfladen afhængig af valg af træsort",null,"Lak behandling af overfladen afhængig af valg af træsort",null,"Boringstype afhænger af kunden"]
[]
[null,null,"Profiltykkelse","Kantprofil","Efter kalibrering",null,"Profiltykkelse (Baldakin)",null,"Kant","Træsort / ABS-nr.",null,"Unik liste af kanter (Sokler og tilpasning)",null,"Kant","Forsider","Bagsider","Tykkelse (forside)","Tykkelse (bagside)",null,"Overflade type","Sort","Overflade",null,"Finerretning",null,"Træsort","Behandling",null,"Boring - hængsel","Betegnelse - hængsel",null,"Boring - hængsel","Betegnelse - hængsel",null,"Boring - skuffe","Betegnelse - skuffe",null,"Greb Placering",null,"Samlingstyper",null,"Type","Flerdelt",null,"Vitrineliste",null,"S-Line 19 højder",null,"Type","Boring frisider",null,"Kantvalg","Profil",null,"Tykkelse","Type","Boring Sokler",null,"Boring Reoler",null,"Hyldefordeling",null,"Rk.flg.","Produktinformation","Fronter","S-Line","Gavle","Sokler","Reoler","Baldakin",null,{"$f":"_xlfn._xlws.SORT(_xlfn.UNIQUE(tblProfile[Profiltykkelse]))","v":"16mm"},null,{"$f":"_xlfn._xlws.SORT(_xlfn._xlws.FILTER(tblProfile[Kantprofil],tblProfile[Profiltykkelse]=Fronter!G11))","v":{"$error":"#VALUE!"}},null,{"$f":"_xlfn._xlws.SORT(_xlfn.UNIQUE(tblBorder[Kant]))","v":"ABS-Lam"},null,{"$f":"_xlfn._xlws.SORT(_xlfn._xlws.FILTER(tblBorder[Træsort / ABS-nr.],tblBorder[Kant]=Fronter!G12))","v":{"$error":"#VALUE!"}},null,{"$f":"_xlfn._xlws.SORT(_xlfn._xlws.FILTER(tblBorder[Træsort / ABS-nr.],tblBorder[Kant]=\"Træ\"))","v":"Ask"},null,{"$f":"_xlfn._xlws.SORT(_xlfn._xlws.FILTER(tblBorder[Træsort / ABS-nr.],tblBorder[Kant]='Gavle og frisider'!G12))","v":{"$error":"#VALUE!"}},null,{"$f":"IF('Sokler og tilpasning'!G12=L12,L12,_xlfn._xlws.SORT(_xlfn._xlws.FILTER(tblBorder[Træsort / ABS-nr.],tblBorder[Kant]='Sokler og tilpasning'!G12)))","v":{"$error":"#VALUE!"}},null,{"$f":"_xlfn._xlws.SORT(_xlfn._xlws.FILTER(tblBorder[Træsort / ABS-nr.],tblBorder[Kant]=Reoler!G12))","v":{"$error":"#VALUE!"}},null,{"$f":"_xlfn._xlws.SORT(_xlfn._xlws.FILTER(tblBorder[Træsort / ABS-nr.],tblBorder[Kant]='Hylder og Baldakin'!G12))","v":{"$error":"#VALUE!"}},null,{"$f":"_xlfn._xlws.SORT(_xlfn._xlws.FILTER(tblBorderSurface[Forsider],tblBorderSurface[Kant]=Fronter!G12))","v":{"$error":"#VALUE!"}},null,{"$f":"_xlfn._xlws.SORT(_xlfn._xlws.FILTER(tblBorderSurface[Forsider],tblBorderSurface[Kant]='Gavle og frisider'!G12))","v":{"$error":"#VALUE!"}},null,{"$f":"IF('Sokler og tilpasning'!G12=L12,L12,_xlfn._xlws.SORT(_xlfn._xlws.FILTER(tblBorderSurface[Forsider],tblBorderSurface[Kant]='Sokler og tilpasning'!G12)))","v":{"$error":"#VALUE!"}},null,{"$f":"_xlfn._xlws.SORT(_xlfn._xlws.FILTER(tblBorderSurface[Forsider],tblBorderSurface[Kant]=Reoler!G12))","v":{"$error":"#VALUE!"}},null,{"$f":"_xlfn._xlws.SORT(_xlfn._xlws.FILTER(tblBorderSurface[Forsider],tblBorderSurface[Kant]='Hylder og Baldakin'!G12))","v":{"$error":"#VALUE!"}},null,{"$f":"_xlfn._xlws.FILTER(tblSurface[Overflade],tblSurface[Overflade type]=Fronter!G14)","v":{"$error":"#VALUE!"}},null,{"$f":"_xlfn._xlws.FILTER(tblSurface[Overflade],(tblSurface[Overflade type]=Fronter!G14)*(tblSurface[Sort]=Fronter!G13))","v":{"$error":"#VALUE!"}},null,{"$f":"IF(Fronter!G14=\"Finer\",_xlfn.ANCHORARRAY(CX8),_xlfn.ANCHORARRAY(CV8))","v":{"$error":"#VALUE!"}},null,{"$f":"_xlfn._xlws.FILTER(tblSurface[Overflade],tblSurface[Overflade type]='Fronter S-Line 19'!G14)","v":{"$error":"#VALUE!"}},null,{"$f":"_xlfn._xlws.FILTER(tblSurface[Overflade],(tblSurface[Overflade type]='Fronter S-Line 19'!G14)*(tblSurface[Sort]='Fronter S-Line 19'!G13))","v":{"$error":"#VALUE!"}},null,{"$f":"IF('Fronter S-Line 19'!G14=\"Finer\",_xlfn.ANCHORARRAY(DD8),_xlfn.ANCHORARRAY(DB8))","v":{"$error":"#VALUE!"}},null,{"$f":"_xlfn._xlws.FILTER(tblSurface[Overflade],tblSurface[Overflade type]='Gavle og frisider'!G14)","v":{"$error":"#VALUE!"}},null,{"$f":"_xlfn._xlws.FILTER(tblSurface[Overflade],(tblSurface[Overflade type]='Gavle og frisider'!G14)*(tblSurface[Sort]='Gavle og frisider'!G13))","v":{"$error":"#VALUE!"}},null,{"$f":"IF('Gavle og frisider'!G14=\"Finer\",_xlfn.ANCHORARRAY(DJ8),_xlfn.ANCHORARRAY(DH8))","v":{"$error":"#VALUE!"}},null,{"$f":"_xlfn._xlws.FILTER(tblSurface[Overflade],tblSurface[Overflade type]='Sokler og tilpasning'!G14)","v":{"$error":"#VALUE!"}},null,{"$f":"_xlfn._xlws.FILTER(tblSurface[Overflade],(tblSurface[Overflade type]='Sokler og tilpasning'!G14)*(tblSurface[Sort]='Sokler og tilpasning'!G13))","v":{"$error":"#VALUE!"}},null,{"$f":"IF('Sokler og tilpasning'!G14=\"Finer\",_xlfn.ANCHORARRAY(DP8),_xlfn.ANCHORARRAY(DN8))","v":{"$error":"#VALUE!"}},null,{"$f":"_xlfn._xlws.FILTER(tblSurface[Overflade],tblSurface[Overflade type]=Reoler!G14)","v":{"$error":"#VALUE!"}},null,{"$f":"_xlfn._xlws.FILTER(tblSurface[Overflade],(tblSurface[Overflade type]=Reoler!G14)*(tblSurface[Sort]=Reoler!G13))","v":{"$error":"#VALUE!"}},null,{"$f":"IF(Reoler!G14=\"Finer\",_xlfn.ANCHORARRAY(DV8),_xlfn.ANCHORARRAY(DT8))","v":{"$error":"#VALUE!"}},null,{"$f":"_xlfn._xlws.FILTER(tblSurface[Overflade],tblSurface[Overflade type]='Hylder og Baldakin'!G14)","v":{"$error":"#VALUE!"}},null,{"$f":"_xlfn._xlws.FILTER(tblSurface[Overflade],(tblSurface[Overflade type]='Hylder og Baldakin'!G14)*(tblSurface[Sort]='Hylder og Baldakin'!G13))","v":{"$error":"#VALUE!"}},null,{"$f":"IF('Hylder og Baldakin'!G14=\"Finer\",_xlfn.ANCHORARRAY(EB8),_xlfn.ANCHORARRAY(DZ8))","v":{"$error":"#VALUE!"}},null,{"$f":"_xlfn._xlws.FILTER(tblSurface[Overflade],tblSurface[Sort]=Fronter!G13)","v":"Skriv overflade under bemærkning"},null,{"$f":"_xlfn._xlws.FILTER(tblSurface[Overflade],(tblSurface[Overflade type]=Fronter!G16)*(tblSurface[Sort]=Fronter!G15))","v":{"$error":"#N/A"}},null,{"$f":"_xlfn.IFS(Fronter!G14=\"Finer\",Fronter!G15,Fronter!G14=\"Højtrykslaminat\",Fronter!G15,Fronter!G14=\"Fenix Laminat\",_xlfn.ANCHORARRAY(EH8),Fronter!G14=\"Linoleum\",_xlfn.ANCHORARRAY(EF8),Fronter!G14=\"Andet\",Fronter!G15)","v":{"$error":"#N/A"}},null,{"$f":"_xlfn._xlws.FILTER(tblTreatment[Behandling],tblTreatment[Træsort]=Fronter!G13)","v":{"$error":"#VALUE!"}},null,{"$f":"_xlfn._xlws.FILTER(tblTreatment[Behandling],tblTreatment[Træsort]='Fronter S-Line 19'!G13)","v":{"$error":"#VALUE!"}},null,{"$f":"_xlfn._xlws.FILTER(tblTreatment[Behandling],tblTreatment[Træsort]='Gavle og frisider'!G13)","v":{"$error":"#VALUE!"}},null,{"$f":"_xlfn._xlws.FILTER(tblTreatment[Behandling],tblTreatment[Træsort]='Sokler og tilpasning'!G13)","v":{"$error":"#VALUE!"}},null,{"$f":"_xlfn._xlws.FILTER(tblTreatment[Behandling],tblTreatment[Træsort]=Reoler!G13)","v":{"$error":"#VALUE!"}},null,{"$f":"_xlfn._xlws.FILTER(tblTreatment[Behandling],tblTreatment[Træsort]='Hylder og Baldakin'!G13)","v":{"$error":"#VALUE!"}},null,{"$f":"_xlfn._xlws.SORT(_xlfn.UNIQUE(tblHingeS_Line[Boring - hængsel]))","v":"Andet"},null,{"$f":"_xlfn._xlws.SORT(_xlfn._xlws.FILTER(tblMulti[Flerdelt],tblMulti[Type]=Fronter!G19))","v":{"$error":"#VALUE!"}},null,{"$f":"_xlfn._xlws.FILTER(tblDrawer[Betegnelse - skuffe],tblDrawer[Boring - skuffe]=Fronter!G19)","v":{"$error":"#VALUE!"}},null,{"$f":"_xlfn._xlws.FILTER(tblDrawer[Betegnelse - skuffe],tblDrawer[Boring - skuffe]='Fronter S-Line 19'!G19)","v":{"$error":"#VALUE!"}},null,{"$f":"_xlfn._xlws.FILTER(tblHinge_Front[Betegnelse - hængsel],tblHinge_Front[Boring - hængsel]=Fronter!G19)","v":{"$error":"#VALUE!"}},null,{"$f":"_xlfn._xlws.FILTER(tblHingeS_Line[Betegnelse - hængsel],tblHingeS_Line[Boring - hængsel]='Fronter S-Line 19'!G19)","v":{"$error":"#VALUE!"}},null,{"$f":"_xlfn._xlws.SORT(_xlfn._xlws.FILTER(tblDrillSide[Boring frisider],tblDrillSide[Type]='Gavle og frisider'!G19))","v":{"$error":"#VALUE!"}},null,{"$f":"_xlfn._xlws.SORT(_xlfn._xlws.FILTER(tblDrillPlinth[Type],tblDrillPlinth[Tykkelse]='Sokler og tilpasning'!G11))","v":"Andet"},null,{"$f":"_xlfn._xlws.SORT(_xlfn._xlws.FILTER(tblDrillPlinth[Boring Sokler],tblDrillPlinth[Type]='Sokler og tilpasning'!G19))","v":{"$error":"#VALUE!"}}]
[null,null,"16mm","L1",15.4,null,"16mm",null,"Træ","Ask",null,"ABS-Lam",null,"ABS-Lam","Andet","Andet",0.7,0.7,null,"Andet",null,"Skriv overflade under bemærkning",null,"Lodret",null,"Ask","Ask Hvid lak",null,"Aubo","Aubo Ø35 mm",null,"Aubo","Aubo Ø35 mm",null,"Aubo","Skuffe Aubo KOL-A",null,"Greb øverst midt",null,"2 delt front stålskinne saml.",null,"Ikea","2D - 1996 (1196+796)",null,"Vitrine m. klar glas",null,"124 mm",null,"Designa","Boring friside LAV Designa",null,"1 ende","KR3",null,"16mm","Designa","Boring Designa Sokkelskuffe",null,"Boring Reol Fast Hylde",null,"Jævnt fordelt",null,1,"Tykkelse","x","x","x","x","x","x",null,"19mm",null,null,null,"ABS-Lino",null,null,null,"Eg",null,null,null,null,null,null,null,null,null,null,null,null,null,null,null,null,null,null,null,null,null,null,null,null,null,null,null,null,null,null,null,null,null,null,null,null,null,null,null,null,null,null,null,null,null,null,null,null,null,null,null,null,null,null,null,"0029 Fenix BIANCO MALÈ Laminat",null,null,null,null,null,null,null,null,null,null,null,null,null,null,null,null,null,"Aubo"]
[null,null,"16mm","L2",15.4,null,"19mm",null,"Træ","Eg",null,"ABS-Lino",null,"ABS-Lam","Fenix laminat","Højtrykslaminat - Fenix",0.9,0.7,null,"Fenix Laminat",null,"0029 Fenix BIANCO MALÈ Laminat",null,"Vandret",null,"Ask","Ask Mokka lak",null,"Blum","Blum styrehuller Ø8",null,"Blum","Blum styrehuller Ø8",null,"Aubo","Skuffe Aubo KOL-B",null,"Greb øverst højre",null,"3 delt front stålskinne saml.",null,"Ikea","2D - 396 (196+196)",null,"Vitrine m. mat glas",null,"188 mm",null,"Designa","Boring friside BAD Designa",null,"2 ender","KR3",null,"19mm Ikea","Ikea","Not til sokkel-beslag Ikea",null,"Boring Løs Hylde",null,"Se tegning",null,2,"Kant","x",null,"x","x","x","x",null,"22mm",null,null,null,"Andet",null,null,null,"Mahogni",null,null,null,null,null,null,null,null,null,null,null,null,null,null,null,null,null,null,null,null,null,null,null,null,null,null,null,null,null,null,null,null,null,null,null,null,null,null,null,null,null,null,null,null,null,null,null,null,null,null,null,null,null,null,null,"0717 Fenix Castoro Ottawa Laminat",null,null,null,null,null,null,null,null,null,null,null,null,null,null,null,null,null,"Blum"]
[null,null,"16mm","L3",15.4,null,"22mm",null,"Træ","Mahogni",null,"Træ",null,"ABS-Lam","Højtrykslaminat","Højtrykslaminat",0.7,0.7,null,"Fenix Laminat",null,"0717 Fenix Castoro Ottawa Laminat",null,null,null,"Ask","Ask Struktur Lak Glans 3",null,"Blum","Blum knæklåge styrehuller 8 mm",null,"Blum","Blum knæklåge styrehuller 8 mm",null,"Aubo","Skuffe Aubo SKF-C",null,"Greb øverst venstre",null,"4 delt front stålskinne saml.",null,"Ikea","2D - 596 (196+396)",null,null,null,"252 mm",null,"Designa","Boring friside BOG Designa",null,"Retkant","L4 Retkant",null,null,"Andet","Skriv bemærkning",null,"Boring hyldebær huller -fra top til bund",null,null,null,3,"Træ/ABS","x","x","x","x","x","x",null,null,null,null,null,"Træ",null,null,null,"Røget eg",null,null,null,null,null,null,null,null,null,null,null,null,null,null,null,null,null,null,null,null,null,null,null,null,null,null,null,null,null,null,null,null,null,null,null,null,null,null,null,null,null,null,null,null,null,null,null,null,null,null,null,null,null,null,null,"0718 Fenix Grigio Londra Laminat",null,null,null,null,null,null,null,null,null,null,null,null,null,null,null,null,null,"Designa"]
[null,null,"16mm","L4",15.4,null,"28mm",null,"Træ","Røget eg",null,"Retkant (uden endekant)",null,"ABS-Lino","Andet","Andet",0.7,0.7,null,"Fenix Laminat",null,"0718 Fenix Grigio Londra Laminat",null,null,null,"Ask","Ask Warm lak",null,"Blum","Blum Emhæt OBS! Grebsfri Greb ned",null,"Blum","Blum Emhæt OBS! Grebsfri Greb ned",null,"Designa","Designa Skuffe",null,"Højskab greb midt",null,"5 delt front stålskinne saml.",null,"Ikea","2D - 796 (396+396)",null,null,null,"316 mm",null,"Designa","Boring friside emhætteskab",null,null,null,null,null,null,null,null,null,null,null,null,4,"Forside","x","x","x","x","x","x",null,null,null,null,null,null,null,null,null,"Valnød",null,null,null,null,null,null,null,null,null,null,null,null,null,null,null,null,null,null,null,null,null,null,null,null,null,null,null,null,null,null,null,null,null,null,null,null,null,null,null,null,null,null,null,null,null,null,null,null,null,null,null,null,null,null,null,"0720 Fenix Nero Ingo Laminat",null,null,null,null,null,null,null,null,null,null,null,null,null,null,null,null,null,"HTH"]
[null,null,"16mm","L6",15.4,null,"38mm",null,"Træ","Valnød",null,null,null,"ABS-Lino","Linoleum","Finer",2,0.6,null,"Fenix Laminat",null,"0720 Fenix Nero Ingo Laminat",null,null,null,"Ask","Klar lak",null,"Designa","Designa",null,"Designa","Designa",null,"Designa","vaskeskab Designa",null,"Højskab greb højre",null,null,null,"Ikea","3D - 1996 (1196+1196+396+396)",null,null,null,"380 mm",null,"Designa","Boring friside iKE Designa",null,null,null,null,null,null,null,null,null,null,null,null,5,"Overflade (forside)","x","x","x","x","x","x",null,null,null,null,null,null,null,null,null,null,null,null,null,null,null,null,null,null,null,null,null,null,null,null,null,null,null,null,null,null,null,null,null,null,null,null,null,null,null,null,null,null,null,null,null,null,null,null,null,null,null,null,null,null,null,null,null,null,null,null,null,null,null,null,null,"0750 Fenix Verde Comodoro Laminat",null,null,null,null,null,null,null,null,null,null,null,null,null,null,null,null,null,"Ikea"]
[null,null,"16mm","L7",15.4,null,"56mm",null,"ABS-Lam","0029 Fenix Hvid 91470 ",null,null,null,"Retkant","Retkant",null,null,null,null,"Fenix Laminat",null,"0750 Fenix Verde Comodoro Laminat",null,null,null,"Ask","Mat klar lak glans 5",null,"Designa","Designa Emhætte",null,"HTH","HTH",null,"Designa","Designa Skuffe SL BORA",null,"Højskab greb venstre",null,null,null,"Ikea","3D - 796 (196+196+396)",null,null,null,"444 mm",null,"Designa","Boring friside KØKKEN Designa",null,null,null,null,null,null,null,null,null,null,null,null,6,"Bagside","x",null,null,null,null,null,null,null,null,null,null,null,null,null,null,null,null,null,null,null,null,null,null,null,null,null,null,null,null,null,null,null,null,null,null,null,null,null,null,null,null,null,null,null,null,null,null,null,null,null,null,null,null,null,null,null,null,null,null,null,null,null,null,null,null,null,null,null,null,null,null,"0595 AR Grigio Nembo Laminat",null,null,null,null,null,null,null,null,null,null,null,null,null,null,null,null,null,"Kvik"]
[null,null,"16mm","L9",15.4,null,null,null,"ABS-Lam","0718 Fenix Grå 140730 ",null,null,null,"Træ","Andet","Andet",0.7,0.7,null,"Finer","Ask","Ask Kegle (Planskåret) Finér mish match",null,null,null,"Eg","Eg Hvid lak",null,"Designa","Designa AFS-2",null,"Ikea","Metod Ø35 + Ø8 styretapper",null,"Designa","Vaskekurv",null,"Køl greb øverst midt",null,null,null,"Ikea","4D - 1996 (1196+196+196+396)",null,null,null,"572 mm",null,"Designa","Boring friside SU Designa",null,null,null,null,null,null,null,null,null,null,null,null,7,"Overflade (Bagside)","x",null,null,null,null,null,null,null,null,null,null,null,null,null,null,null,null,null,null,null,null,null,null,null,null,null,null,null,null,null,null,null,null,null,null,null,null,null,null,null,null,null,null,null,null,null,null,null,null,null,null,null,null,null,null,null,null,null,null,null,null,null,null,null,null,null,null,null,null,null,null,"0903 Cafe",null,null,null,null,null,null,null,null,null,null,null,null,null,null,null,null,null,"Tvis"]
[null,null,"16mm","L12",15.4,null,null,null,"ABS-Lam","0720 Fenix Sort 98522 ",null,null,null,"Træ","Finer","Finer",0.6,0.6,null,"Finer","Ask","Ask Kvartskåret Finer",null,null,null,"Eg","Eg Mokka lak ",null,"Designa","Designa Knæklåge",null,"Ikea","Pax Ø35 Styrehuller Ø5 TL",null,"HTH","HTH - ØVERST- LUX",null,"Køl greb øverst højre",null,null,null,"Ikea","4D - 796 (196+196+196+196)",null,null,null,"700 mm",null,"Designa","Boring friside SUB5732",null,null,null,null,null,null,null,null,null,null,null,null,8,"Finerretning",null,null,null,null,"x","x",null,null,null,null,null,null,null,null,null,null,null,null,null,null,null,null,null,null,null,null,null,null,null,null,null,null,null,null,null,null,null,null,null,null,null,null,null,null,null,null,null,null,null,null,null,null,null,null,null,null,null,null,null,null,null,null,null,null,null,null,null,null,null,null,null,"F 1192 Porcelana Laminat"]
[null,null,"19mm","L1",17.399999999999999,null,null,null,"ABS-Lam","1192 Lysgul 65661  1192",null,null,null,"Træ","Fenix laminat","Højtrykslaminat - Fenix",0.9,0.7,null,"Finer","Ask","Ask Vild Mish Match Finér",null,null,null,"Eg","Eg Natur lak",null,"Designa","Designa Axis instiksskab (B)",null,"Ikea","Metod Knæklåge Ø35 + Ø8 styretap",null,"HTH","Skuffe HTH LUX",null,"Køl greb øverst venstre",null,null,null,"Ikea","5D - 1996 (1196+196+196+196+196)",null,null,null,null,null,"Designa","Boring friside til S-Line",null,null,null,null,null,null,null,null,null,null,null,null,9,"Behandling","x","x","x","x","x","x",null,null,null,null,null,null,null,null,null,null,null,null,null,null,null,null,null,null,null,null,null,null,null,null,null,null,null,null,null,null,null,null,null,null,null,null,null,null,null,null,null,null,null,null,null,null,null,null,null,null,null,null,null,null,null,null,null,null,null,null,null,null,null,null,null,"F 2833 Sandstone Laminat"]
[null,null,"19mm","L2",17.399999999999999,null,null,null,"ABS-Lam","1192 Lysgul 65661  1192",null,null,null,"Træ","Højtrykslaminat","Højtrykslaminat",0.7,0.7,null,"Finer","Eg","Eg Kegle (Planskåret) Mish Match Finér",null,null,null,"Eg","Eg Skiffer Mørk brun lak",null,"HTH","HTH",null,"Ikea","Faktum Ø35 m. Ø5 styrehuller",null,"HTH","HTH - NEDERST - LUX",null,null,null,null,null,"Aubo","2D - 1948 (1244+700)",null,null,null,null,null,"Designa","Boring friside til sokkelskuffe",null,null,null,null,null,null,null,null,null,null,null,null,10,"Boringstype","x","x","x","x","x",null,null,null,null,null,null,null,null,null,null,null,null,null,null,null,null,null,null,null,null,null,null,null,null,null,null,null,null,null,null,null,null,null,null,null,null,null,null,null,null,null,null,null,null,null,null,null,null,null,null,null,null,null,null,null,null,null,null,null,null,null,null,null,null,null,null,"F 3007 Pale Olive Laminat"]
[null,null,"19mm","L3",17.399999999999999,null,null,null,"ABS-Lam","1998 Oslo 310100604 ",null,null,null,"Træ","Linoleum","Finer",2,0.6,null,"Finer","Eg","Eg Kvartskåret Finér",null,null,null,"Eg","Eg Sort lak",null,"Ikea","Metod Ø35 + Ø8 styretapper",null,"Ikea","Pax Ø35 Styrehuller Ø5",null,"Ikea","Metod Skuffe",null,null,null,null,null,"Aubo","2D - 380 (124+252)",null,null,null,null,null,"Designa","Boring friside Træskuffer BAD Designa",null,null,null,null,null,null,null,null,null,null,null,null,null,null,null,null,null,null,null,null,null,null,null,null,null,null,null,null,null,null,null,null,null,null,null,null,null,null,null,null,null,null,null,null,null,null,null,null,null,null,null,null,null,null,null,null,null,null,null,null,null,null,null,null,null,null,null,null,null,null,null,null,null,null,null,null,null,null,null,null,null,null,null,null,null,"F 406 (6463) Sheer White laminat"]
[null,null,"19mm","L4",17.399999999999999,null,null,null,"ABS-Lam","2833 Sandstone 76797 ",null,null,null,"Andet","Andet","Andet",0.7,0.7,null,"Finer","Eg","Eg Vild Mish Match Finér",null,null,null,"Eg","Eg Struktur Natur lak Glans 3",null,"Ikea","Pax Ø35 Styrehuller Ø5 TL",null,"Ikea","Ikea Aventos HK Top stay lift",null,"Ikea","Faktum Skuffer",null,null,null,null,null,"Aubo","2D - 572 (252+316)",null,null,null,null,null,"Designa","Boring friside Træskuffer Designa",null,null,null,null,null,null,null,null,null,null,null,null,null,null,null,null,null,null,null,null,null,null,null,null,null,null,null,null,null,null,null,null,null,null,null,null,null,null,null,null,null,null,null,null,null,null,null,null,null,null,null,null,null,null,null,null,null,null,null,null,null,null,null,null,null,null,null,null,null,null,null,null,null,null,null,null,null,null,null,null,null,null,null,null,null,"F 5342 Earth Laminat"]
[null,null,"19mm","L5",17.399999999999999,null,null,null,"ABS-Lam","2966  OPAL Grøn ",null,null,null,null,null,null,null,null,null,"Finer","Eg","Knast Eg Kegle (Planskåret) Mish Match Finér",null,null,null,"Eg","Eg Warm lak",null,"Ikea","Metod Knæklåge Ø35 + Ø8 styretap",null,"Kvik","Kvik",null,"Ikea","Maximera udtræk",null,null,null,null,null,"Aubo","2D - 700 (348+348)",null,null,null,null,null,"Ikea","Boring friside IKEA",null,null,null,null,null,null,null,null,null,null,null,null,null,null,null,null,null,null,null,null,null,null,null,null,null,null,null,null,null,null,null,null,null,null,null,null,null,null,null,null,null,null,null,null,null,null,null,null,null,null,null,null,null,null,null,null,null,null,null,null,null,null,null,null,null,null,null,null,null,null,null,null,null,null,null,null,null,null,null,null,null,null,null,null,null,"F 6466 Silk Grey Laminat"]
[null,null,"19mm","L6",17.399999999999999,null,null,null,"ABS-Lam","406 Hvid 91470 ",null,null,null,null,null,null,null,null,null,"Finer","Mahogni","Mahogni Kvartskåret Finér",null,null,null,"Eg","Klar lak",null,"Ikea","Faktum Ø35 m. Ø5 styrehuller",null,"Tvis","Tvis",null,"Ikea","Træskuffe Hettich",null,null,null,null,null,"Aubo","3D - 1948 (1244+348+348)",null,null,null,null,null,"Aubo","Skriv bemærkning",null,null,null,null,null,null,null,null,null,null,null,null,null,null,null,null,null,null,null,null,null,null,null,null,null,null,null,null,null,null,null,null,null,null,null,null,null,null,null,null,null,null,null,null,null,null,null,null,null,null,null,null,null,null,null,null,null,null,null,null,null,null,null,null,null,null,null,null,null,null,null,null,null,null,null,null,null,null,null,null,null,null,null,null,null,"F 7853 Ocean Grey Laminat"]
[null,null,"19mm","L7",17.399999999999999,null,null,null,"ABS-Lam","4172 Jordfarve 77364 ",null,null,null,null,null,null,null,null,null,"Finer","Røget eg","Røget eg Kegle (Planskåret) Mish Match Finér",null,null,null,"Eg","Mat klar lak glans 5",null,"Ikea","Pax Ø35 Styrehuller Ø5",null,"Andet","Skriv bemærkning",null,"Ikea","Skuffe Godmorgon BUND Ø25 mm",null,null,null,null,null,"Aubo","3D - 700 (124+252+316)",null,null,null,null,null,"Blum","Skriv bemærkning",null,null,null,null,null,null,null,null,null,null,null,null,null,null,null,null,null,null,null,null,null,null,null,null,null,null,null,null,null,null,null,null,null,null,null,null,null,null,null,null,null,null,null,null,null,null,null,null,null,null,null,null,null,null,null,null,null,null,null,null,null,null,null,null,null,null,null,null,null,null,null,null,null,null,null,null,null,null,null,null,null,null,null,null,null,"F 7912 Storm laminat"]
[null,null,"19mm","L8",17.399999999999999,null,null,null,"ABS-Lam","4175 Pebble Lys grå 174175 ",null,null,null,null,null,null,null,null,null,"Finer","Røget eg","Røget eg Kvartskåret Finér",null,null,null,"Mahogni","Klar lak",null,"Ikea","Ikea Aventos HK Top stay lift",null,null,null,null,"Ikea","Skuffe Godmorgon TOP Ø25 mm",null,null,null,null,null,"Aubo","4D - 1948 (1244+124+252+316)",null,null,null,null,null,"HTH","Skriv bemærkning",null,null,null,null,null,null,null,null,null,null,null,null,null,null,null,null,null,null,null,null,null,null,null,null,null,null,null,null,null,null,null,null,null,null,null,null,null,null,null,null,null,null,null,null,null,null,null,null,null,null,null,null,null,null,null,null,null,null,null,null,null,null,null,null,null,null,null,null,null,null,null,null,null,null,null,null,null,null,null,null,null,null,null,null,null,"F 7924 Lead Laminat"]
[null,null,"19mm","L9",17.399999999999999,null,null,null,"ABS-Lam","5342 Grå/jordfarvet 78311 ",null,null,null,null,null,null,null,null,null,"Finer","Valnød","Valnød Kvartskåret Mish Match Finér",null,null,null,"Mahogni","Mat klar lak glans 5",null,"Kvik","Kvik",null,null,null,null,"Kvik","Kvik Skuffe",null,null,null,null,null,"Blum","2D - 1948 (1244+700)",null,null,null,null,null,"Kvik","Skriv bemærkning",null,null,null,null,null,null,null,null,null,null,null,null,null,null,null,null,null,null,null,null,null,null,null,null,null,null,null,null,null,null,null,null,null,null,null,null,null,null,null,null,null,null,null,null,null,null,null,null,null,null,null,null,null,null,null,null,null,null,null,null,null,null,null,null,null,null,null,null,null,null,null,null,null,null,null,null,null,null,null,null,null,null,null,null,null,"F 7927 Folkestone laminat"]
[null,null,"19mm","L10",17.399999999999999,null,null,null,"ABS-Lam","7853 Støvet grøn 77285 ",null,null,null,null,null,null,null,null,null,"Højtrykslaminat",null,"0595 AR Grigio Nembo Laminat",null,null,null,"Røget eg","Klar lak",null,"Tvis","Tvis",null,null,null,null,"Andet","Skriv bemærkning",null,null,null,null,null,"Blum","2D - 380 (124+252)",null,null,null,null,null,"Tvis","Skriv bemærkning",null,null,null,null,null,null,null,null,null,null,null,null,null,null,null,null,null,null,null,null,null,null,null,null,null,null,null,null,null,null,null,null,null,null,null,null,null,null,null,null,null,null,null,null,null,null,null,null,null,null,null,null,null,null,null,null,null,null,null,null,null,null,null,null,null,null,null,null,null,null,null,null,null,null,null,null,null,null,null,null,null,null,null,null,null,"F 7929 Oyster Grey laminat"]
[null,null,"19mm","L11",17.399999999999999,null,null,null,"ABS-Lam","7924 Lead 78932   ",null,null,null,null,null,null,null,null,null,"Højtrykslaminat",null,"0903 Cafe",null,null,null,"Røget eg","Mat klar lak glans 5",null,"Andet","Skriv bemærkning",null,null,null,null,null,null,null,null,null,null,null,"Blum","2D - 572 (252+316)",null,null,null,null,null,"Andet","Skriv bemærkning",null,null,null,null,null,null,null,null,null,null,null,null,null,null,null,null,null,null,null,null,null,null,null,null,null,null,null,null,null,null,null,null,null,null,null,null,null,null,null,null,null,null,null,null,null,null,null,null,null,null,null,null,null,null,null,null,null,null,null,null,null,null,null,null,null,null,null,null,null,null,null,null,null,null,null,null,null,null,null,null,null,null,null,null,null,"F 8822 Denim Laminat"]
[null,null,"19mm","L12",17.399999999999999,null,null,null,"ABS-Lam","7929 73762  Oyster Grey",null,null,null,null,null,null,null,null,null,"Højtrykslaminat",null,"F 1192 Porcelana Laminat",null,null,null,"Valnød","Klar lak",null,null,null,null,null,null,null,null,null,null,null,null,null,null,"Blum","2D - 700 (348+348)",null,null,null,null,null,null,null,null,null,null,null,null,null,null,null,null,null,null,null,null,null,null,null,null,null,null,null,null,null,null,null,null,null,null,null,null,null,null,null,null,null,null,null,null,null,null,null,null,null,null,null,null,null,null,null,null,null,null,null,null,null,null,null,null,null,null,null,null,null,null,null,null,null,null,null,null,null,null,null,null,null,null,null,null,null,null,null,null,null,null,null,null,"FM 0760 Grøn Laminat"]
[null,null,"22mm","L4 Retkant",21.2,null,null,null,"ABS-Lam","8141 Adobe Jord 71117 ",null,null,null,null,null,null,null,null,null,"Højtrykslaminat",null,"F 2833 Sandstone Laminat",null,null,null,"Valnød","Mat klar lak glans 5",null,null,null,null,null,null,null,null,null,null,null,null,null,null,"Blum","3D - 1948 (1244+348+348)",null,null,null,null,null,null,null,null,null,null,null,null,null,null,null,null,null,null,null,null,null,null,null,null,null,null,null,null,null,null,null,null,null,null,null,null,null,null,null,null,null,null,null,null,null,null,null,null,null,null,null,null,null,null,null,null,null,null,null,null,null,null,null,null,null,null,null,null,null,null,null,null,null,null,null,null,null,null,null,null,null,null,null,null,null,null,null,null,null,null,null,null,"4001 Clay Linoleum"]
[null,null,"22mm","Grebsfri",21.2,null,null,null,"ABS-Lam","0750 Fenix Grøn 140607 ",null,null,null,null,null,null,null,null,null,"Højtrykslaminat",null,"F 3007 Pale Olive Laminat",null,null,null,null,null,null,null,null,null,null,null,null,null,null,null,null,null,null,null,"Blum","3D - 700 (124+252+316)",null,null,null,null,null,null,null,null,null,null,null,null,null,null,null,null,null,null,null,null,null,null,null,null,null,null,null,null,null,null,null,null,null,null,null,null,null,null,null,null,null,null,null,null,null,null,null,null,null,null,null,null,null,null,null,null,null,null,null,null,null,null,null,null,null,null,null,null,null,null,null,null,null,null,null,null,null,null,null,null,null,null,null,null,null,null,null,null,null,null,null,null,"4002 Leather Linoleum"]
[null,null,"22mm","In-line 30x150",21.2,null,null,null,"ABS-Lam","0760 Grøn   ",null,null,null,null,null,null,null,null,null,"Højtrykslaminat",null,"F 406 (6463) Sheer White laminat",null,null,null,null,null,null,null,null,null,null,null,null,null,null,null,null,null,null,null,"Blum","4D - 1948 (1244+124+252+316)",null,null,null,null,null,null,null,null,null,null,null,null,null,null,null,null,null,null,null,null,null,null,null,null,null,null,null,null,null,null,null,null,null,null,null,null,null,null,null,null,null,null,null,null,null,null,null,null,null,null,null,null,null,null,null,null,null,null,null,null,null,null,null,null,null,null,null,null,null,null,null,null,null,null,null,null,null,null,null,null,null,null,null,null,null,null,null,null,null,null,null,null,"4003 Walnut Linoleum"]
[null,null,"22mm","In-line 40mm",21.2,null,null,null,"ABS-Lam","0595 Grå   ",null,null,null,null,null,null,null,null,null,"Højtrykslaminat",null,"F 5342 Earth Laminat",null,null,null,null,null,null,null,null,null,null,null,null,null,null,null,null,null,null,null,"Designa","2D - 1948 (1244+700)",null,null,null,null,null,null,null,null,null,null,null,null,null,null,null,null,null,null,null,null,null,null,null,null,null,null,null,null,null,null,null,null,null,null,null,null,null,null,null,null,null,null,null,null,null,null,null,null,null,null,null,null,null,null,null,null,null,null,null,null,null,null,null,null,null,null,null,null,null,null,null,null,null,null,null,null,null,null,null,null,null,null,null,null,null,null,null,null,null,null,null,null,"4004 Blue Haze Linoleum"]
[null,null,"22mm","C-line",21.2,null,null,null,"ABS-Lam","8822  Denim",null,null,null,null,null,null,null,null,null,"Højtrykslaminat",null,"F 6466 Silk Grey Laminat",null,null,null,null,null,null,null,null,null,null,null,null,null,null,null,null,null,null,null,"Designa","2D - 380 (124+252)",null,null,null,null,null,null,null,null,null,null,null,null,null,null,null,null,null,null,null,null,null,null,null,null,null,null,null,null,null,null,null,null,null,null,null,null,null,null,null,null,null,null,null,null,null,null,null,null,null,null,null,null,null,null,null,null,null,null,null,null,null,null,null,null,null,null,null,null,null,null,null,null,null,null,null,null,null,null,null,null,null,null,null,null,null,null,null,null,null,null,null,null,"4005 Denim Linoleum"]
[null,null,null,null,null,null,null,null,"ABS-Lino","4001 Clay Linoleum",null,null,null,null,null,null,null,null,null,"Højtrykslaminat",null,"F 7853 Ocean Grey Laminat",null,null,null,null,null,null,null,null,null,null,null,null,null,null,null,null,null,null,null,"Designa","2D - 572 (252+316)",null,null,null,null,null,null,null,null,null,null,null,null,null,null,null,null,null,null,null,null,null,null,null,null,null,null,null,null,null,null,null,null,null,null,null,null,null,null,null,null,null,null,null,null,null,null,null,null,null,null,null,null,null,null,null,null,null,null,null,null,null,null,null,null,null,null,null,null,null,null,null,null,null,null,null,null,null,null,null,null,null,null,null,null,null,null,null,null,null,null,null,null,"4007 Macadamia  Linoleum"]
[null,null,null,null,null,null,null,null,"ABS-Lino","4002 Leather Linoleum",null,null,null,null,null,null,null,null,null,"Højtrykslaminat",null,"F 7912 Storm laminat",null,null,null,null,null,null,null,null,null,null,null,null,null,null,null,null,null,null,null,"Designa","2D - 700 (348+348)",null,null,null,null,null,null,null,null,null,null,null,null,null,null,null,null,null,null,null,null,null,null,null,null,null,null,null,null,null,null,null,null,null,null,null,null,null,null,null,null,null,null,null,null,null,null,null,null,null,null,null,null,null,null,null,null,null,null,null,null,null,null,null,null,null,null,null,null,null,null,null,null,null,null,null,null,null,null,null,null,null,null,null,null,null,null,null,null,null,null,null,null,"4008 Brick  Linoleum"]
[null,null,null,null,null,null,null,null,"ABS-Lino","4003 Walnut Linoleum",null,null,null,null,null,null,null,null,null,"Højtrykslaminat",null,"F 7924 Lead Laminat",null,null,null,null,null,null,null,null,null,null,null,null,null,null,null,null,null,null,null,"Designa","3D - 1948 (1244+348+348)",null,null,null,null,null,null,null,null,null,null,null,null,null,null,null,null,null,null,null,null,null,null,null,null,null,null,null,null,null,null,null,null,null,null,null,null,null,null,null,null,null,null,null,null,null,null,null,null,null,null,null,null,null,null,null,null,null,null,null,null,null,null,null,null,null,null,null,null,null,null,null,null,null,null,null,null,null,null,null,null,null,null,null,null,null,null,null,null,null,null,null,null,"4009 Espresso Linoleum"]
[null,null,null,null,null,null,null,null,"ABS-Lino","4004 Blue Haze Linoleum",null,null,null,null,null,null,null,null,null,"Højtrykslaminat",null,"F 7927 Folkestone laminat",null,null,null,null,null,null,null,null,null,null,null,null,null,null,null,null,null,null,null,"Designa","3D - 700 (124+252+316)",null,null,null,null,null,null,null,null,null,null,null,null,null,null,null,null,null,null,null,null,null,null,null,null,null,null,null,null,null,null,null,null,null,null,null,null,null,null,null,null,null,null,null,null,null,null,null,null,null,null,null,null,null,null,null,null,null,null,null,null,null,null,null,null,null,null,null,null,null,null,null,null,null,null,null,null,null,null,null,null,null,null,null,null,null,null,null,null,null,null,null,null,"4011 Taupe Linoleum"]
[null,null,null,null,null,null,null,null,"ABS-Lino","4005 Denim Linoleum",null,null,null,null,null,null,null,null,null,"Højtrykslaminat",null,"F 7929 Oyster Grey laminat",null,null,null,null,null,null,null,null,null,null,null,null,null,null,null,null,null,null,null,"Designa","4D - 1948 (1244+124+252+316)",null,null,null,null,null,null,null,null,null,null,null,null,null,null,null,null,null,null,null,null,null,null,null,null,null,null,null,null,null,null,null,null,null,null,null,null,null,null,null,null,null,null,null,null,null,null,null,null,null,null,null,null,null,null,null,null,null,null,null,null,null,null,null,null,null,null,null,null,null,null,null,null,null,null,null,null,null,null,null,null,null,null,null,null,null,null,null,null,null,null,null,null,"4155 Pewter Linoleum"]
[null,null,null,null,null,null,null,null,"ABS-Lino","4007 Macadamia  Linoleum",null,null,null,null,null,null,null,null,null,"Højtrykslaminat",null,"F 8822 Denim Laminat",null,null,null,null,null,null,null,null,null,null,null,null,null,null,null,null,null,null,null,"HTH","2D - 1948 (1244+700)",null,null,null,null,null,null,null,null,null,null,null,null,null,null,null,null,null,null,null,null,null,null,null,null,null,null,null,null,null,null,null,null,null,null,null,null,null,null,null,null,null,null,null,null,null,null,null,null,null,null,null,null,null,null,null,null,null,null,null,null,null,null,null,null,null,null,null,null,null,null,null,null,null,null,null,null,null,null,null,null,null,null,null,null,null,null,null,null,null,null,null,null,"4166 Charcoal Linoleum"]
[null,null,null,null,null,null,null,null,"ABS-Lino","4008 Brick  Linoleum",null,null,null,null,null,null,null,null,null,"Højtrykslaminat",null,"FM 0760 Grøn Laminat",null,null,null,null,null,null,null,null,null,null,null,null,null,null,null,null,null,null,null,"HTH","2D - 380 (124+252)",null,null,null,null,null,null,null,null,null,null,null,null,null,null,null,null,null,null,null,null,null,null,null,null,null,null,null,null,null,null,null,null,null,null,null,null,null,null,null,null,null,null,null,null,null,null,null,null,null,null,null,null,null,null,null,null,null,null,null,null,null,null,null,null,null,null,null,null,null,null,null,null,null,null,null,null,null,null,null,null,null,null,null,null,null,null,null,null,null,null,null,null,"4172 Mauve Linoleum"]
[null,null,null,null,null,null,null,null,"ABS-Lino","4009 Espresso Linoleum",null,null,null,null,null,null,null,null,null,"Linoleum",null,"4001 Clay Linoleum",null,null,null,null,null,null,null,null,null,null,null,null,null,null,null,null,null,null,null,"HTH","2D - 572 (252+316)",null,null,null,null,null,null,null,null,null,null,null,null,null,null,null,null,null,null,null,null,null,null,null,null,null,null,null,null,null,null,null,null,null,null,null,null,null,null,null,null,null,null,null,null,null,null,null,null,null,null,null,null,null,null,null,null,null,null,null,null,null,null,null,null,null,null,null,null,null,null,null,null,null,null,null,null,null,null,null,null,null,null,null,null,null,null,null,null,null,null,null,null,"4174 Conifer Linoleum"]
[null,null,null,null,null,null,null,null,"ABS-Lino","4011 Taupe Linoleum",null,null,null,null,null,null,null,null,null,"Linoleum",null,"4002 Leather Linoleum",null,null,null,null,null,null,null,null,null,null,null,null,null,null,null,null,null,null,null,"HTH","2D - 700 (348+348)",null,null,null,null,null,null,null,null,null,null,null,null,null,null,null,null,null,null,null,null,null,null,null,null,null,null,null,null,null,null,null,null,null,null,null,null,null,null,null,null,null,null,null,null,null,null,null,null,null,null,null,null,null,null,null,null,null,null,null,null,null,null,null,null,null,null,null,null,null,null,null,null,null,null,null,null,null,null,null,null,null,null,null,null,null,null,null,null,null,null,null,null,"4175 Pebble Linoleum"]
[null,null,null,null,null,null,null,null,"ABS-Lino","4155 Pewter Mørk grå",null,null,null,null,null,null,null,null,null,"Linoleum",null,"4003 Walnut Linoleum",null,null,null,null,null,null,null,null,null,null,null,null,null,null,null,null,null,null,null,"HTH","3D - 1948 (1244+348+348)",null,null,null,null,null,null,null,null,null,null,null,null,null,null,null,null,null,null,null,null,null,null,null,null,null,null,null,null,null,null,null,null,null,null,null,null,null,null,null,null,null,null,null,null,null,null,null,null,null,null,null,null,null,null,null,null,null,null,null,null,null,null,null,null,null,null,null,null,null,null,null,null,null,null,null,null,null,null,null,null,null,null,null,null,null,null,null,null,null,null,null,null,"4176 Mushroom Linoleum"]
[null,null,null,null,null,null,null,null,"ABS-Lino","4166 Charcoal Mørk antrazitgrå",null,null,null,null,null,null,null,null,null,"Linoleum",null,"4004 Blue Haze Linoleum",null,null,null,null,null,null,null,null,null,null,null,null,null,null,null,null,null,null,null,"HTH","3D - 700 (124+252+316)",null,null,null,null,null,null,null,null,null,null,null,null,null,null,null,null,null,null,null,null,null,null,null,null,null,null,null,null,null,null,null,null,null,null,null,null,null,null,null,null,null,null,null,null,null,null,null,null,null,null,null,null,null,null,null,null,null,null,null,null,null,null,null,null,null,null,null,null,null,null,null,null,null,null,null,null,null,null,null,null,null,null,null,null,null,null,null,null,null,null,null,null,"4179 Smokey Blue Linoleum"]
[null,null,null,null,null,null,null,null,"ABS-Lino","4172 Mauve Linoleum",null,null,null,null,null,null,null,null,null,"Linoleum",null,"4005 Denim Linoleum",null,null,null,null,null,null,null,null,null,null,null,null,null,null,null,null,null,null,null,"HTH","4D - 1948 (1244+124+252+316)",null,null,null,null,null,null,null,null,null,null,null,null,null,null,null,null,null,null,null,null,null,null,null,null,null,null,null,null,null,null,null,null,null,null,null,null,null,null,null,null,null,null,null,null,null,null,null,null,null,null,null,null,null,null,null,null,null,null,null,null,null,null,null,null,null,null,null,null,null,null,null,null,null,null,null,null,null,null,null,null,null,null,null,null,null,null,null,null,null,null,null,null,"4184 Olive Linoleum"]
[null,null,null,null,null,null,null,null,"ABS-Lino","4174 Conifer Mørk grøn ",null,null,null,null,null,null,null,null,null,"Linoleum",null,"4007 Macadamia  Linoleum",null,null,null,null,null,null,null,null,null,null,null,null,null,null,null,null,null,null,null,"Kvik","2D - 1948 (1244+700)",null,null,null,null,null,null,null,null,null,null,null,null,null,null,null,null,null,null,null,null,null,null,null,null,null,null,null,null,null,null,null,null,null,null,null,null,null,null,null,null,null,null,null,null,null,null,null,null,null,null,null,null,null,null,null,null,null,null,null,null,null,null,null,null,null,null,null,null,null,null,null,null,null,null,null,null,null,null,null,null,null,null,null,null,null,null,null,null,null,null,null,null,"Ingen overflade"]
[null,null,null,null,null,null,null,null,"ABS-Lino","4175 Pebble Linoleum",null,null,null,null,null,null,null,null,null,"Linoleum",null,"4008 Brick  Linoleum",null,null,null,null,null,null,null,null,null,null,null,null,null,null,null,null,null,null,null,"Kvik","2D - 380 (124+252)"]
[null,null,null,null,null,null,null,null,"ABS-Lino","4176 Mushroom Linoleum",null,null,null,null,null,null,null,null,null,"Linoleum",null,"4009 Espresso Linoleum",null,null,null,null,null,null,null,null,null,null,null,null,null,null,null,null,null,null,null,"Kvik","2D - 572 (252+316)"]
[null,null,null,null,null,null,null,null,"ABS-Lino","4179 Smokey Blue Blå",null,null,null,null,null,null,null,null,null,"Linoleum",null,"4011 Taupe Linoleum",null,null,null,null,null,null,null,null,null,null,null,null,null,null,null,null,null,null,null,"Kvik","2D - 700 (348+348)"]
[null,null,null,null,null,null,null,null,"ABS-Lino","4184 Olive Oliven grøn",null,null,null,null,null,null,null,null,null,"Linoleum",null,"4155 Pewter Linoleum",null,null,null,null,null,null,null,null,null,null,null,null,null,null,null,null,null,null,null,"Kvik","3D - 1948 (1244+348+348)"]
[null,null,null,null,null,null,null,null,"Andet","Andet",null,null,null,null,null,null,null,null,null,"Linoleum",null,"4166 Charcoal Linoleum",null,null,null,null,null,null,null,null,null,null,null,null,null,null,null,null,null,null,null,"Kvik","3D - 700 (124+252+316)"]
[null,null,null,null,null,null,null,null,null,null,null,null,null,null,null,null,null,null,null,"Linoleum",null,"4172 Mauve Linoleum",null,null,null,null,null,null,null,null,null,null,null,null,null,null,null,null,null,null,null,"Kvik","4D - 1948 (1244+124+252+316)"]
[null,null,null,null,null,null,null,null,null,null,null,null,null,null,null,null,null,null,null,"Linoleum",null,"4174 Conifer Linoleum",null,null,null,null,null,null,null,null,null,null,null,null,null,null,null,null,null,null,null,"Tvis","2D - 1948 (1244+700)"]
[null,null,null,null,null,null,null,null,null,null,null,null,null,null,null,null,null,null,null,"Linoleum",null,"4175 Pebble Linoleum",null,null,null,null,null,null,null,null,null,null,null,null,null,null,null,null,null,null,null,"Tvis","2D - 380 (124+252)"]
[null,null,null,null,null,null,null,null,null,null,null,null,null,null,null,null,null,null,null,"Linoleum",null,"4176 Mushroom Linoleum",null,null,null,null,null,null,null,null,null,null,null,null,null,null,null,null,null,null,null,"Tvis","2D - 572 (252+316)"]
[null,null,null,null,null,null,null,null,null,null,null,null,null,null,null,null,null,null,null,"Linoleum",null,"4179 Smokey Blue Linoleum",null,null,null,null,null,null,null,null,null,null,null,null,null,null,null,null,null,null,null,"Tvis","2D - 700 (348+348)"]
[null,null,null,null,null,null,null,null,null,null,null,null,null,null,null,null,null,null,null,"Linoleum",null,"4184 Olive Linoleum",null,null,null,null,null,null,null,null,null,null,null,null,null,null,null,null,null,null,null,"Tvis","3D - 1948 (1244+348+348)"]
[null,null,null,null,null,null,null,null,null,null,null,null,null,null,null,null,null,null,null,"Massiv",null,"Ingen overflade",null,null,null,null,null,null,null,null,null,null,null,null,null,null,null,null,null,null,null,"Tvis","3D - 700 (124+252+316)"]
[null,null,null,null,null,null,null,null,null,null,null,null,null,null,null,null,null,null,null,"Højtrykslaminat - Fenix","0029 Fenix BIANCO MALÈ Laminat","406-LAM",null,null,null,null,null,null,null,null,null,null,null,null,null,null,null,null,null,null,null,"Tvis","4D - 1948 (1244+124+252+316)"]
[null,null,null,null,null,null,null,null,null,null,null,null,null,null,null,null,null,null,null,"Højtrykslaminat - Fenix","0717 Fenix Castoro Ottawa Laminat","3202-LAM",null,null,null,null,null,null,null,null,null,null,null,null,null,null,null,null,null,null,null,"Andet","Skriv bemærkning"]
[null,null,null,null,null,null,null,null,null,null,null,null,null,null,null,null,null,null,null,"Højtrykslaminat - Fenix","0718 Fenix Grigio Londra Laminat","0595-LAM"]
[null,null,null,null,null,null,null,null,null,null,null,null,null,null,null,null,null,null,null,"Højtrykslaminat - Fenix","0720 Fenix Nero Ingo Laminat","0509-LAM"]
[null,null,null,null,null,null,null,null,null,null,null,null,null,null,null,null,null,null,null,"Højtrykslaminat - Fenix","0750 Fenix Verde Comodoro Laminat","0760-LAM"]

{"sheet":"Vejledninger","index":8,"n_rows":11,"n_cols":5,"rows_kept":11,"cut":false,"hidden":true,"merged":[[0,5,1,5],[0,6,1,6],[2,5,3,5],[2,6,3,6]]}
[]
[]
[]
[]
[]
[]
[]
[]
[]
[null,null,null,null,"Objekt 1"]
[null,null,null,null,"Standardvejledning"]

{"sheet":"Version","index":9,"n_rows":30,"n_cols":20,"rows_kept":30,"cut":false,"hidden":true,"merged":[[0,5,1,5],[0,6,1,6],[2,5,3,5],[2,6,3,6]]}
[null,null,null,null,null,"Version er det frigivne dokument nr.","01, 02, 03 etc"]
[]
[null,null,null,null,null,"Revision er arbejdsdokumentet","01a, 01b, 01c etc"]
[]
[]
[null,null,null,"Samlet antal timer",{"$f":"SUM(H10:I10)","v":46}]
[null,null,null,"Samlet beløb",20000]
[null,null,null,"Beregnet timesats",{"$f":"E7/E6","v":434.78260869565219}]
[]
[null,null,null,{"$f":"LARGE(Tabel2[Versionsnummer],1)","v":2},null,null,null,{"$f":"SUM(Tabel2[Sum timer (UB)])","v":22},{"$f":"SUM(Tabel2[Sum timer])","v":24}]
[null,null,null,"Versionsnummer","Ændret af","Ændringer","dato","Sum timer (UB)","Sum timer",null,"Version","Dato","Projekttrin","VBA eller beskrivelse","Timer UB","Udviklingstimer","Tilpasning","Samlet timetal",null,"Projekttrin"]
[null,null,null,1,"MAS","Oprettelse af Ny bestillingsskema","2024-05-01",{"$f":"SUMIFS(Tabel3[Timer UB],Tabel3[Version],Tabel2[[#This Row],[Versionsnummer]],Tabel3[Dato],Tabel2[[#This Row],[dato]])","v":0},{"$f":"SUMIFS(Tabel3[Samlet timetal],Tabel3[Version],Tabel2[[#This Row],[Versionsnummer]],Tabel3[Dato],Tabel2[[#This Row],[dato]])","v":24},null,1,"2024-05-01","3.1 Detailkonstruktion og test","Oprettelse, VBA, fejlsøgning",null,null,24,{"$f":"P12/10+Q12","v":24},null,"1.1 Afklaring og kontrakt"]
[null,null,null,2,"MAS","Service-fee BBO tilføjet","2024-06-10",{"$f":"SUMIFS(Tabel3[Timer UB],Tabel3[Version],Tabel2[[#This Row],[Versionsnummer]],Tabel3[Dato],Tabel2[[#This Row],[dato]])","v":12.5},{"$f":"SUMIFS(Tabel3[Samlet timetal],Tabel3[Version],Tabel2[[#This Row],[Versionsnummer]],Tabel3[Dato],Tabel2[[#This Row],[dato]])","v":0},null,2,"2024-06-10","4.1 Drift og problemafhjælpning","Finer strukturretning",0.5,null,null,0,null,"2.1 Koncept og kravspec"]
[null,null,null,2,"MAS","Stamdata opdateret med informationer fra Jesper","2024-07-29",{"$f":"SUMIFS(Tabel3[Timer UB],Tabel3[Version],Tabel2[[#This Row],[Versionsnummer]],Tabel3[Dato],Tabel2[[#This Row],[dato]])","v":1},{"$f":"SUMIFS(Tabel3[Samlet timetal],Tabel3[Version],Tabel2[[#This Row],[Versionsnummer]],Tabel3[Dato],Tabel2[[#This Row],[dato]])","v":0},null,2,"2024-06-10","4.1 Drift og problemafhjælpning","Alle disse informationer kopieres til de andre ark",0.5,null,null,0,null,"3.1 Detailkonstruktion og test"]
[null,null,null,2,"MAS","Boringstyper og hængsel med grøn markering\nStrukturretning med grøn markering\nFiner afhænger af træsort","2024-08-07",{"$f":"SUMIFS(Tabel3[Timer UB],Tabel3[Version],Tabel2[[#This Row],[Versionsnummer]],Tabel3[Dato],Tabel2[[#This Row],[dato]])","v":2},{"$f":"SUMIFS(Tabel3[Samlet timetal],Tabel3[Version],Tabel2[[#This Row],[Versionsnummer]],Tabel3[Dato],Tabel2[[#This Row],[dato]])","v":0},null,2,"2024-06-10","4.1 Drift og problemafhjælpning","Aktive ark markeres!",0.5,null,null,0,null,"3.2 Dokumentation & undervisning"]
[null,null,null,2,"MAS","Tilretninger fra mail fra JON d. 9/8","2024-08-12",{"$f":"SUMIFS(Tabel3[Timer UB],Tabel3[Version],Tabel2[[#This Row],[Versionsnummer]],Tabel3[Dato],Tabel2[[#This Row],[dato]])","v":5},{"$f":"SUMIFS(Tabel3[Samlet timetal],Tabel3[Version],Tabel2[[#This Row],[Versionsnummer]],Tabel3[Dato],Tabel2[[#This Row],[dato]])","v":0},null,2,"2024-06-10","4.1 Drift og problemafhjælpning","Udskrift layout ikke angivet! Napper udskriften over",1,null,null,0,null,"4.1 Drift og problemafhjælpning"]
[null,null,null,2,"MAS","Tilretninger fra mail fra JON d. 28/8","2024-08-28",{"$f":"SUMIFS(Tabel3[Timer UB],Tabel3[Version],Tabel2[[#This Row],[Versionsnummer]],Tabel3[Dato],Tabel2[[#This Row],[dato]])","v":1},{"$f":"SUMIFS(Tabel3[Samlet timetal],Tabel3[Version],Tabel2[[#This Row],[Versionsnummer]],Tabel3[Dato],Tabel2[[#This Row],[dato]])","v":0},null,2,"2024-06-10","4.1 Drift og problemafhjælpning","Bagside til fenix",1,null,null,0,null,"5.1 Overdragelse og viden"]
[null,null,null,2,"MAS","Tilretninger fra mail fra JON d. 29/11","2024-11-30",{"$f":"SUMIFS(Tabel3[Timer UB],Tabel3[Version],Tabel2[[#This Row],[Versionsnummer]],Tabel3[Dato],Tabel2[[#This Row],[dato]])","v":0.5},{"$f":"SUMIFS(Tabel3[Samlet timetal],Tabel3[Version],Tabel2[[#This Row],[Versionsnummer]],Tabel3[Dato],Tabel2[[#This Row],[dato]])","v":0},null,2,"2024-06-10","4.1 Drift og problemafhjælpning","Hoved indtastes på forside og overføres til alle andre",0.5,null,null,0]
[null,null,null,null,null,null,null,null,null,null,2,"2024-06-10","4.1 Drift og problemafhjælpning","Låst tabulator springer over",0.5,null,null,0]
[null,null,null,null,null,null,null,null,null,null,2,"2024-06-10","4.1 Drift og problemafhjælpning","Andre tilpasninger og fejlsøgning",8,null,null,0]
[null,null,null,null,null,null,null,null,null,null,2,"2024-07-29","4.1 Drift og problemafhjælpning","Stamdata opdateret. Mulige ændringer undersøgt",1,null,null,0]
[null,null,null,null,null,null,null,null,null,null,2,"2024-08-07","4.1 Drift og problemafhjælpning","Kirsebær slettet I tblSurface efter aftale med JON",0,null,null,{"$f":"P22/10+Q22","v":0}]
[null,null,null,null,null,null,null,null,null,null,2,"2024-08-07","4.1 Drift og problemafhjælpning","Boringstype kan kun være \"Designa\". (*Fronter’, ’S-Line’, ’Sokler og Tilpasning’, ’Reoler’)",0.5,null,null,{"$f":"P23/10+Q23","v":0}]
[null,null,null,null,null,null,null,null,null,null,2,"2024-08-07","4.1 Drift og problemafhjælpning","Boring hængsel, V/H markeres grøn ved valg. (’Fronter’ og ’S-Line’)",0.5,null,null,{"$f":"P24/10+Q24","v":0}]
[null,null,null,null,null,null,null,null,null,null,2,"2024-08-07","4.1 Drift og problemafhjælpning","Grøn markering af ”Strukturretning” ved Overfaldevalg = Finer. (’Fronter’, Gavle og frisider’)",0.5,null,null,0]
[null,null,null,null,null,null,null,null,null,null,2,"2024-08-07","4.1 Drift og problemafhjælpning","Ved Finer kan udelukkende vælges korresponderende træsort, fx Eg og eg overflader (’Fronter’, ’S-Line’, ’Gavle og frisider’, ’Sokler og Tilpasning’, ’Reoler’, ’Hylder og Baldakin’",0.5,null,null,0]
[null,null,null,null,null,null,null,null,null,null,2,"2024-08-12","4.1 Drift og problemafhjælpning","Boringstype kan kun være \"Designa\". (’S-Line’, ’Sokler og Tilpasning’, ’Reoler’)\nBoring hængsel, V/H markeres grøn ved valg. (’Fronter’ og ’S-Line’)\nHvid markering af ”Strukturretning” ved Overfaldevalg = Finer. (’Fronter’, ’Gavle og frisider’, ’Sokler og tilpasning’). \n- Vi har fra start valgt at skemaet hvor man indtaster de enkelte lågers parametre, skal disse være uden farve og dermed skal de udfyldes. \n- Hvis feltet ikke skal udfyldes er det markeret gråt. \n- Alternativt skal alle felter i hele skemaet være grønne.\nLister til overfladevalg til bagsiden er oprettet således at overfladen til bagsiden er forudbestemt af forsidens overflade",{"$f":"3+2","v":5},null,null,{"$f":"P27/10+Q27","v":0}]
[null,null,null,null,null,null,null,null,null,null,2,"2024-08-28","4.1 Drift og problemafhjælpning","Fronter S-Line 19”: kun ”designa hængsel” skal være mulig\n19 mm til Ikea. Der kan kun vælges ”Designa boring” Det skal skiftes ud med ”Ikea udfræsning til sokler”\n”Reoler”: ”boringstype” skal være blank (kunden skal ikke kunne vælge nogen boring)",1,null,null,{"$f":"P28/10+Q28","v":0}]
[null,null,null,null,null,null,null,null,null,null,2,"2024-11-30","4.1 Drift og problemafhjælpning","Fronter: Formel ændret for valg af overflade bagside ved valg af Linoleum forside",0.5,null,null,{"$f":"P29/10+Q29","v":0}]
[null,null,null,null,null,null,null,null,null,null,2,"2024-12-03","4.1 Drift og problemafhjælpning","Fronter: Tilføjet valg af Samlingstype til Gul linje",0,null,null,{"$f":"P30/10+Q30","v":0}]